Department,Entity,Date of Payment,Expense Type,Expense Area,Supplier,Transaction Number,Amount
UK Trade and Investment Programme,UK Trade and Investment Programme,01-Apr-2011 ,Authoring and Copywriting Costs - Trade Marketing Publication,UK Trade & Investment - Marketing  & Communications Group,B2B INTERNATIONAL LIMITED,145252,10000.00
UK Trade and Investment Programme,UK Trade and Investment Programme,01-Apr-2011 ,Authoring and Copywriting Costs - Trade Marketing Publicity,UK Trade & Investment - Marketing  & Communications Group,DE MIERRE COMMUNICATIONS,145365,1800.00
UK Trade and Investment Programme,UK Trade and Investment Programme,01-Apr-2011 ,Authoring and Copywriting Costs - Trade Marketing Publicity,UK Trade & Investment - Marketing  & Communications Group,KREATIVITY LTD,145328,3695.00
UK Trade and Investment Programme,UK Trade and Investment Programme,01-Apr-2011 ,Basic Grants - SESA Solo Support Scheme,UK Trade & Investment - Sectors Group,KINESIS LTD,145260,1000.00
UK Trade and Investment Programme,UK Trade and Investment Programme,01-Apr-2011 ,Basic Grants - SESA Solo Support Scheme,UK Trade & Investment - Sectors Group,PAGER POWER LTD,145265,1000.00
UK Trade and Investment Programme,UK Trade and Investment Programme,01-Apr-2011 ,Basic Grants - SESA Solo Support Scheme,UK Trade & Investment - Sectors Group,SLEEV-IT FIRE SYSTEMS LTD,145298,1000.00
UK Trade and Investment Programme,UK Trade and Investment Programme,01-Apr-2011 ,Scheme Management Charges- NINJ Sector Events,UK Trade & Investment - Sectors Group,ERNST & YOUNG LLP,145249,12171.60
UK Trade and Investment Programme,UK Trade and Investment Programme,01-Apr-2011 ,Scheme Management Charges- NINJ Sector Events,UK Trade & Investment - Sectors Group,ERNST & YOUNG LLP,145251,13524.00
UK Trade and Investment Programme,UK Trade and Investment Programme,01-Apr-2011 ,Design Services - Inward Investment Publications,UK Trade & Investment - Marketing  & Communications Group,APPETITE CONSULTANCY LTD,145324,2150.00
UK Trade and Investment Programme,UK Trade and Investment Programme,01-Apr-2011 ,Design Services - Inward Investment Publicity,UK Trade & Investment - Marketing  & Communications Group,ACUMEN DESIGN CONSULTANCY LTD,145362,560.00
UK Trade and Investment Programme,UK Trade and Investment Programme,01-Apr-2011 ,Design Services - Marketing the Olympics,UK Trade & Investment - Marketing  & Communications Group,BELLMAN MEDIA LTD,145329,4111.00
UK Trade and Investment Programme,UK Trade and Investment Programme,01-Apr-2011 ,Design Services - Marketing the Olympics,UK Trade & Investment - Marketing  & Communications Group,BELLMAN MEDIA LTD,145330,603.00
UK Trade and Investment Programme,UK Trade and Investment Programme,01-Apr-2011 ,Design Services - Marketing the Olympics,UK Trade & Investment - Marketing  & Communications Group,RED STONE DESIGN LTD,145268,500.00
UK Trade and Investment Programme,UK Trade and Investment Programme,01-Apr-2011 ,Design Services - Sector Events - Abroad,UK Trade & Investment - Sectors Group,ACUMEN DESIGN CONSULTANCY LTD,145271,180.00
UK Trade and Investment Programme,UK Trade and Investment Programme,01-Apr-2011 ,Design Services - Sector Events - Abroad,UK Trade & Investment - Sectors Group,ACUMEN DESIGN CONSULTANCY LTD,145272,480.00
UK Trade and Investment Programme,UK Trade and Investment Programme,01-Apr-2011 ,Design Services - Sector Events - Abroad,UK Trade & Investment - Sectors Group,ACUMEN DESIGN CONSULTANCY LTD,145273,112.50
UK Trade and Investment Programme,UK Trade and Investment Programme,01-Apr-2011 ,Design Services - Sector Events - Abroad,UK Trade & Investment - Sectors Group,ACUMEN DESIGN CONSULTANCY LTD,145274,267.50
UK Trade and Investment Programme,UK Trade and Investment Programme,01-Apr-2011 ,Design Services - Sector Events - Abroad,UK Trade & Investment - Sectors Group,ACUMEN DESIGN CONSULTANCY LTD,145274,132.50
UK Trade and Investment Programme,UK Trade and Investment Programme,01-Apr-2011 ,Design Services - Sector Events - Abroad,UK Trade & Investment - Sectors Group,ACUMEN DESIGN CONSULTANCY LTD,145275,27.50
UK Trade and Investment Programme,UK Trade and Investment Programme,01-Apr-2011 ,Design Services - Sector Events - Abroad,UK Trade & Investment - Sectors Group,ACUMEN DESIGN CONSULTANCY LTD,145275,47.50
UK Trade and Investment Programme,UK Trade and Investment Programme,01-Apr-2011 ,Design Services - Sector Events - UK,UK Trade & Investment - Sectors Group,ACUMEN DESIGN CONSULTANCY LTD,145270,2309.00
UK Trade and Investment Programme,UK Trade and Investment Programme,01-Apr-2011 ,Design Services - Sector Events - UK,UK Trade & Investment - Sectors Group,ACUMEN DESIGN CONSULTANCY LTD,145270,557.00
UK Trade and Investment Programme,UK Trade and Investment Programme,01-Apr-2011 ,Design Services - Sector Events - UK,UK Trade & Investment - Sectors Group,D4 PROJEKT LTD,145212,2406.00
UK Trade and Investment Programme,UK Trade and Investment Programme,01-Apr-2011 ,Design Services - Sector Events - UK,UK Trade & Investment - Sectors Group,D4 PROJEKT LTD,145212,6.00
UK Trade and Investment Programme,UK Trade and Investment Programme,01-Apr-2011 ,Design Services - Trade Marketing Events,UK Trade & Investment - Marketing  & Communications Group,CLEARVIEW IMAGING SERVICES LTD,145299,165.00
UK Trade and Investment Programme,UK Trade and Investment Programme,01-Apr-2011 ,Design Services - Trade Marketing Publication,UK Trade & Investment - Sectors Group,ACUMEN DESIGN CONSULTANCY LTD,145361,1400.00
UK Trade and Investment Programme,UK Trade and Investment Programme,01-Apr-2011 ,Design Services - Trade Marketing Publicity,UK Trade & Investment - Marketing  & Communications Group,ACUMEN DESIGN CONSULTANCY LTD,145338,560.00
UK Trade and Investment Programme,UK Trade and Investment Programme,01-Apr-2011 ,Design Services - UKTI Corporate Marketing,UK Trade & Investment - Marketing  & Communications Group,ACUMEN DESIGN CONSULTANCY LTD,145357,112.50
UK Trade and Investment Programme,UK Trade and Investment Programme,01-Apr-2011 ,Development Cost - Website (AUC) - Clearing Account - Balance Sheet,UK Trade & Investment - IT and Finance Group,MICHAEL PAGE INTERNATIONAL RECRUITMENT LTD,145259,3106.56
UK Trade and Investment Programme,UK Trade and Investment Programme,01-Apr-2011 ,Development Cost - Website (AUC) - Clearing Account - Balance Sheet,UK Trade & Investment - IT and Finance Group,MICHAEL PAGE INTERNATIONAL RECRUITMENT LTD,145262,3106.56
UK Trade and Investment Programme,UK Trade and Investment Programme,01-Apr-2011 ,Display Materials/Signage - Sector Events - Abroad,UK Trade & Investment - Sectors Group,CLEARVIEW IMAGING SERVICES LTD,145353,2285.00
UK Trade and Investment Programme,UK Trade and Investment Programme,01-Apr-2011 ,Entertainment UK - Inward Investment Events,UK Trade & Investment - Business Group,"Personal Expense, Name Witheld.",505156,9.46
UK Trade and Investment Programme,UK Trade and Investment Programme,01-Apr-2011 ,Entertainment UK - Sector Events - UK,UK Trade & Investment - Sectors Group,THOMAS TELFORD LTD,145121,156.16
UK Trade and Investment Programme,UK Trade and Investment Programme,01-Apr-2011 ,Event Management - Inward Investment Publicity,UK Trade & Investment - Marketing  & Communications Group,MWD CONSULTANCY LTD,145293,480.00
UK Trade and Investment Programme,UK Trade and Investment Programme,01-Apr-2011 ,Event Management - Outward missions,UK Trade & Investment - Sectors Group,ADS GROUP LTD,145238,11849.61
UK Trade and Investment Programme,UK Trade and Investment Programme,01-Apr-2011 ,Event Management - Outward missions,UK Trade & Investment - Sectors Group,ADS GROUP LTD,145276,3320.00
UK Trade and Investment Programme,UK Trade and Investment Programme,01-Apr-2011 ,Event Management - Outward missions,UK Trade & Investment - Sectors Group,ADS GROUP LTD,145291,8352.00
UK Trade and Investment Programme,UK Trade and Investment Programme,01-Apr-2011 ,Event Management - Outward missions,UK Trade & Investment - Sectors Group,ADS GROUP LTD,145291,2141.33
UK Trade and Investment Programme,UK Trade and Investment Programme,01-Apr-2011 ,Event Management - Outward missions,UK Trade & Investment - Sectors Group,EXCO (CONSULTANCIES) LTD,145280,6409.21
UK Trade and Investment Programme,UK Trade and Investment Programme,01-Apr-2011 ,Event Management - Outward missions,UK Trade & Investment - Sectors Group,RAILWAY INDUSTRY ASSOCIATION,145354,4166.66
UK Trade and Investment Programme,UK Trade and Investment Programme,01-Apr-2011 ,Event Management - Sector Events - Abroad,UK Trade & Investment - Sectors Group,ABOUT BLUE COMUNICACAO LDA,144519,3495.66
UK Trade and Investment Programme,UK Trade and Investment Programme,01-Apr-2011 ,Event Management - Sector Events - Abroad,UK Trade & Investment - Sectors Group,COMMODORE CORPORATE TRAVEL,145243,2500.00
UK Trade and Investment Programme,UK Trade and Investment Programme,01-Apr-2011 ,Event Management - Sector Events - Abroad,UK Trade & Investment - Sectors Group,FOREIGN AND COMMONWEALTH OFFICE (FCO),145196,77.00
UK Trade and Investment Programme,UK Trade and Investment Programme,01-Apr-2011 ,Event Management - Sector Events - UK,UK Trade & Investment - Sectors Group,CENTRE FOR COMPETITIVENESS (NI) LTD,145351,2000.00
UK Trade and Investment Programme,UK Trade and Investment Programme,01-Apr-2011 ,Event Management - Sector Events - UK,UK Trade & Investment - Sectors Group,KCA LONDON LLP,145355,5600.00
UK Trade and Investment Programme,UK Trade and Investment Programme,01-Apr-2011 ,Event Management - Sector Events - UK,UK Trade & Investment - Sectors Group,NPL MANAGEMENT LTD,145257,15347.00
UK Trade and Investment Programme,UK Trade and Investment Programme,01-Apr-2011 ,Event Management - Sector Events - UK,UK Trade & Investment - Sectors Group,OAKLEY ASSOCIATES LTD,145239,930.00
UK Trade and Investment Programme,UK Trade and Investment Programme,01-Apr-2011 ,Event Management - Trade Development Support,UK Trade & Investment - International Group,G4S SECURE SOLUTIONS (UK) LTD,144963,0.40
UK Trade and Investment Programme,UK Trade and Investment Programme,01-Apr-2011 ,Event Management - Trade Development Support,UK Trade & Investment - International Group,G4S SECURE SOLUTIONS (UK) LTD,144963,60.00
UK Trade and Investment Programme,UK Trade and Investment Programme,01-Apr-2011 ,Event Management - Trade Development Support,UK Trade & Investment - International Group,G4S SECURE SOLUTIONS (UK) LTD,144964,75.00
UK Trade and Investment Programme,UK Trade and Investment Programme,01-Apr-2011 ,Event Management - Trade Development Support,UK Trade & Investment - International Group,G4S SECURE SOLUTIONS (UK) LTD,144964,45.80
UK Trade and Investment Programme,UK Trade and Investment Programme,01-Apr-2011 ,Event Management - Trade Marketing Events,UK Trade & Investment - Regional Directorate,BUSINESS TO BUSINESS,145285,9875.00
UK Trade and Investment Programme,UK Trade and Investment Programme,01-Apr-2011 ,Event Management - Trade Marketing Events,UK Trade & Investment - Regional Directorate,HSBC BANK plc,145267,10000.00
UK Trade and Investment Programme,UK Trade and Investment Programme,01-Apr-2011 ,Event Management - Trade Marketing Events,UK Trade & Investment - Marketing  & Communications Group,"Personal Expense, Name Witheld.",505155,552.00
UK Trade and Investment Programme,UK Trade and Investment Programme,01-Apr-2011 ,Library Services - Trade Marketing Events,UK Trade & Investment - Sectors Group,CELS BUSINESS SERVICES LTD,145356,6840.00
UK Trade and Investment Programme,UK Trade and Investment Programme,01-Apr-2011 ,Licenses and Copyright Agreements - NINJ Sector Events,UK Trade & Investment - Sectors Group,KOBALT MUSIC PUBLISHING LTD,145244,150.00
UK Trade and Investment Programme,UK Trade and Investment Programme,01-Apr-2011 ,Media and Press Services - Trade Marketing Publicity,UK Trade & Investment - Regional Directorate,COI COMMUNICATIONS,145290,25000.00
UK Trade and Investment Programme,UK Trade and Investment Programme,01-Apr-2011 ,Online Services charges - Sector Events - UK,UK Trade & Investment - Sectors Group,NAVYBLUE DESIGN GROUP LTD,145366,3000.00
UK Trade and Investment Programme,UK Trade and Investment Programme,01-Apr-2011 ,Online Services charges - Trade Marketing Events,UK Trade & Investment - Marketing  & Communications Group,TOUCHSCREEN SERVICES LTD,145305,699.96
UK Trade and Investment Programme,UK Trade and Investment Programme,01-Apr-2011 ,Other Accomodation costs - Trade Marketing Events,UK Trade & Investment - Marketing  & Communications Group,CLEARVIEW IMAGING SERVICES LTD,145266,2300.42
UK Trade and Investment Programme,UK Trade and Investment Programme,01-Apr-2011 ,Other IT Services - Trade Marketing Publication,UK Trade & Investment - Marketing  & Communications Group,PANLOGIC LTD,145303,4821.00
UK Trade and Investment Programme,UK Trade and Investment Programme,01-Apr-2011 ,Other Transportation Hire - Trade Marketing Events,UK Trade & Investment - Regional Directorate,SHEFFIELD CHAMBER OF COMMERCE & INDUSTRY,144761,627.00
UK Trade and Investment Programme,UK Trade and Investment Programme,01-Apr-2011 ,Photographic Services - Trade Marketing Publication,UK Trade & Investment - Marketing  & Communications Group,APPETITE CONSULTANCY LTD,145307,1920.00
UK Trade and Investment Programme,UK Trade and Investment Programme,01-Apr-2011 ,Photographic Services - Trade Marketing Publication,UK Trade & Investment - Marketing  & Communications Group,APPETITE CONSULTANCY LTD,145311,5799.60
UK Trade and Investment Programme,UK Trade and Investment Programme,01-Apr-2011 ,Photographic Services - Trade Marketing Publication,UK Trade & Investment - Marketing  & Communications Group,APPETITE CONSULTANCY LTD,145312,1128.00
UK Trade and Investment Programme,UK Trade and Investment Programme,01-Apr-2011 ,Photographic Services - Trade Marketing Publication,UK Trade & Investment - Marketing  & Communications Group,APPETITE CONSULTANCY LTD,145314,5580.00
UK Trade and Investment Programme,UK Trade and Investment Programme,01-Apr-2011 ,Photographic Services - Trade Marketing Publication,UK Trade & Investment - Marketing  & Communications Group,APPETITE CONSULTANCY LTD,145315,1920.00
UK Trade and Investment Programme,UK Trade and Investment Programme,01-Apr-2011 ,Photographic Services - Trade Marketing Publication,UK Trade & Investment - Marketing  & Communications Group,APPETITE CONSULTANCY LTD,145317,768.00
UK Trade and Investment Programme,UK Trade and Investment Programme,01-Apr-2011 ,Photographic Services - Trade Marketing Publication,UK Trade & Investment - Marketing  & Communications Group,APPETITE CONSULTANCY LTD,145318,1980.00
UK Trade and Investment Programme,UK Trade and Investment Programme,01-Apr-2011 ,Photographic Services - Trade Marketing Publication,UK Trade & Investment - Marketing  & Communications Group,APPETITE CONSULTANCY LTD,145319,1920.00
UK Trade and Investment Programme,UK Trade and Investment Programme,01-Apr-2011 ,Photographic Services - Trade Marketing Publication,UK Trade & Investment - Marketing  & Communications Group,APPETITE CONSULTANCY LTD,145320,2688.00
UK Trade and Investment Programme,UK Trade and Investment Programme,01-Apr-2011 ,Photographic Services - Trade Marketing Publication,UK Trade & Investment - Marketing  & Communications Group,APPETITE CONSULTANCY LTD,145321,2972.40
UK Trade and Investment Programme,UK Trade and Investment Programme,01-Apr-2011 ,Photographic Services - Trade Marketing Publication,UK Trade & Investment - Marketing  & Communications Group,APPETITE CONSULTANCY LTD,145322,768.00
UK Trade and Investment Programme,UK Trade and Investment Programme,01-Apr-2011 ,Photographic Services - Trade Marketing Publication,UK Trade & Investment - Marketing  & Communications Group,APPETITE CONSULTANCY LTD,145323,1740.00
UK Trade and Investment Programme,UK Trade and Investment Programme,01-Apr-2011 ,Photographic Services - Trade Marketing Publication,UK Trade & Investment - Marketing  & Communications Group,APPETITE CONSULTANCY LTD,145324,19200.00
UK Trade and Investment Programme,UK Trade and Investment Programme,01-Apr-2011 ,Photographic Services - Trade Marketing Publication,UK Trade & Investment - Marketing  & Communications Group,APPETITE CONSULTANCY LTD,145325,1800.00
UK Trade and Investment Programme,UK Trade and Investment Programme,01-Apr-2011 ,Printed Publications - Sector Events - UK,UK Trade & Investment - Sectors Group,NICOLETTE FOX,145256,2100.00
UK Trade and Investment Programme,UK Trade and Investment Programme,01-Apr-2011 ,Printed Publications - Trade Marketing Events,UK Trade & Investment - Defence and Security Organisation,RED STONE DESIGN LTD,145345,689.50
UK Trade and Investment Programme,UK Trade and Investment Programme,01-Apr-2011 ,Printed Publications - Trade Marketing Events,UK Trade & Investment - Defence and Security Organisation,RED STONE DESIGN LTD,145346,937.00
UK Trade and Investment Programme,UK Trade and Investment Programme,01-Apr-2011 ,Printed Publications - Trade Marketing Events,UK Trade & Investment - Defence and Security Organisation,RED STONE DESIGN LTD,145348,917.90
UK Trade and Investment Programme,UK Trade and Investment Programme,01-Apr-2011 ,Printing Costs - Inward Investment Publications,UK Trade & Investment - Marketing  & Communications Group,WHITEHOUSE MAINWARING DESIGN CONSULTANTS LTD,145295,1965.00
UK Trade and Investment Programme,UK Trade and Investment Programme,01-Apr-2011 ,Printing Costs - Trade Marketing Events,UK Trade & Investment - Regional Directorate,ADECS LTD T/A ADECS PROFITA,144617,3003.00
UK Trade and Investment Programme,UK Trade and Investment Programme,01-Apr-2011 ,Printing Costs - Trade Marketing Publication,UK Trade & Investment - Marketing  & Communications Group,WHITEHOUSE MAINWARING DESIGN CONSULTANTS LTD,145281,2596.00
UK Trade and Investment Programme,UK Trade and Investment Programme,01-Apr-2011 ,Printing Costs - Trade Marketing Publication,UK Trade & Investment - Marketing  & Communications Group,WHITEHOUSE MAINWARING DESIGN CONSULTANTS LTD,145282,3370.00
UK Trade and Investment Programme,UK Trade and Investment Programme,01-Apr-2011 ,Printing Costs - Trade Marketing Publication,UK Trade & Investment - Marketing  & Communications Group,WHITEHOUSE MAINWARING DESIGN CONSULTANTS LTD,145283,4395.00
UK Trade and Investment Programme,UK Trade and Investment Programme,01-Apr-2011 ,Printing Costs - Trade Marketing Publication,UK Trade & Investment - Marketing  & Communications Group,WHITEHOUSE MAINWARING DESIGN CONSULTANTS LTD,145284,3955.00
UK Trade and Investment Programme,UK Trade and Investment Programme,01-Apr-2011 ,Research and Development Costs - Trade Marketing Events,UK Trade & Investment - Regional Directorate,TRENDS BUSINESS RESEARCH LTD,145358,2548.00
UK Trade and Investment Programme,UK Trade and Investment Programme,01-Apr-2011 ,Research and Development Costs - Trade Marketing Research,UK Trade & Investment - Sectors Group,PERA INTERNATIONAL LTD,145349,7500.00
UK Trade and Investment Programme,UK Trade and Investment Programme,01-Apr-2011 ,Scheme Management Charges - International Trade Team Contracting,UK Trade & Investment - Regional Directorate,MEDILINK (YORKSHIRE AND HUMBER) LTD,145277,7387.00
UK Trade and Investment Programme,UK Trade and Investment Programme,01-Apr-2011 ,Scheme Management Charges - Trade Development External Advisers,UK Trade & Investment - Sectors Group,PA CONSULTING GROUP LTD,145245,15600.00
UK Trade and Investment Programme,UK Trade and Investment Programme,01-Apr-2011 ,Scheme Management Charges - Trade Development External Advisers,UK Trade & Investment - Sectors Group,PA CONSULTING GROUP LTD,145246,22762.01
UK Trade and Investment Programme,UK Trade and Investment Programme,01-Apr-2011 ,Scheme Management Charges - Trade Development External Advisers,UK Trade & Investment - Sectors Group,PA CONSULTING GROUP LTD,145246,-22762.01
UK Trade and Investment Programme,UK Trade and Investment Programme,01-Apr-2011 ,Scheme Management Charges - Trade Development External Advisers,UK Trade & Investment - Sectors Group,PA CONSULTING GROUP LTD,145246,23246.30
UK Trade and Investment Programme,UK Trade and Investment Programme,01-Apr-2011 ,Scheme Management Charges - Trade Development External Advisers,UK Trade & Investment - Sectors Group,PA CONSULTING GROUP LTD,145247,7330.69
UK Trade and Investment Programme,UK Trade and Investment Programme,01-Apr-2011 ,Scheme Management Charges - Trade Development External Advisers,UK Trade & Investment - Sectors Group,PA CONSULTING GROUP LTD,145248,262713.85
UK Trade and Investment Programme,UK Trade and Investment Programme,01-Apr-2011 ,Speakers fees - Asia Task Force,UK Trade & Investment - International Group,MALCOLM AR LLEWELLYN,145287,218.00
UK Trade and Investment Programme,UK Trade and Investment Programme,01-Apr-2011 ,Stand Construction Costs - Trade Marketing Events,UK Trade & Investment - Regional Directorate,CLEARVIEW IMAGING SERVICES LTD,145278,970.00
UK Trade and Investment Programme,UK Trade and Investment Programme,01-Apr-2011 ,Stand Construction Costs - Trade Marketing Events,UK Trade & Investment - Regional Directorate,CLEARVIEW IMAGING SERVICES LTD,145279,485.00
UK Trade and Investment Programme,UK Trade and Investment Programme,01-Apr-2011 ,Stand Construction Costs - Trade Marketing Events,UK Trade & Investment - Marketing  & Communications Group,CLEARVIEW IMAGING SERVICES LTD,145300,3810.37
UK Trade and Investment Programme,UK Trade and Investment Programme,01-Apr-2011 ,Stand Space/rental costs - Sector Events - Abroad,UK Trade & Investment - Sectors Group,GSMA LTD,145360,41400.00
UK Trade and Investment Programme,UK Trade and Investment Programme,01-Apr-2011 ,Storage costs - Trade Marketing Events,UK Trade & Investment - Marketing  & Communications Group,ELECTRO-TECH COLOUR LTD,145292,2791.80
UK Trade and Investment Programme,UK Trade and Investment Programme,01-Apr-2011 ,Storage costs - Trade Marketing Events,UK Trade & Investment - Marketing  & Communications Group,ELECTRO-TECH COLOUR LTD,145294,2350.00
UK Trade and Investment Programme,UK Trade and Investment Programme,01-Apr-2011 ,Telecommunications - Inward Investment Publicity,UK Trade & Investment - Olympics Unit,ALL SCENES MEDIA UK LTD,144727,1500.00
UK Trade and Investment Programme,UK Trade and Investment Programme,01-Apr-2011 ,Telemarketing - Trade Marketing Events,UK Trade & Investment - Regional Directorate,INNOVAS SOLUTIONS LTD,145288,4750.00
UK Trade and Investment Programme,UK Trade and Investment Programme,01-Apr-2011 ,Training - General - Passport Development & Events,UK Trade & Investment - Regional Directorate,FOOD & DRINK EXPORTESE LTD,145250,7750.00
UK Trade and Investment Programme,UK Trade and Investment Programme,01-Apr-2011 ,Training - General - Passport Development & Events,UK Trade & Investment - Regional Directorate,GJ INTERNATIONAL LTD,145363,950.00
UK Trade and Investment Programme,UK Trade and Investment Programme,01-Apr-2011 ,Travel and Subsistence O'seas - Market Visit Scheme,UK Trade & Investment - Regional Directorate,BARJIS CREATIVZ LTD,145242,1000.00
UK Trade and Investment Programme,UK Trade and Investment Programme,01-Apr-2011 ,Travel and Subsistence O'seas - Market Visit Scheme,UK Trade & Investment - Regional Directorate,C F VERNEY T/A TIGERS THAT TALKED,145297,665.00
UK Trade and Investment Programme,UK Trade and Investment Programme,01-Apr-2011 ,Travel and Subsistence O'seas - Market Visit Scheme,UK Trade & Investment - Regional Directorate,JBA MANAGEMENT LTD T/A JOHN BURKE ASSOCIATES,145240,550.00
UK Trade and Investment Programme,UK Trade and Investment Programme,01-Apr-2011 ,Travel and Subsistence O'seas - Market Visit Scheme,UK Trade & Investment - Regional Directorate,KUMAR STRATEGIC CONSULTANTS LTD,145241,550.00
UK Trade and Investment Programme,UK Trade and Investment Programme,01-Apr-2011 ,Travel and Subsistence O'seas - Market Visit Scheme,UK Trade & Investment - Regional Directorate,MELLOW COLOUR LTD,145341,750.00
UK Trade and Investment Programme,UK Trade and Investment Programme,01-Apr-2011 ,Travel and Subsistence O'seas - Market Visit Scheme,UK Trade & Investment - Regional Directorate,NORTH STAFFORDSHIRE CHAMBER OF COMMERCE AND INDUSTRY,145340,650.00
UK Trade and Investment Programme,UK Trade and Investment Programme,01-Apr-2011 ,Travel and Subsistence O'seas - Market Visit Scheme,UK Trade & Investment - Regional Directorate,NORTH STAFFORDSHIRE CHAMBER OF COMMERCE AND INDUSTRY,145342,550.00
UK Trade and Investment Programme,UK Trade and Investment Programme,01-Apr-2011 ,Travel and Subsistence O'seas - Market Visit Scheme,UK Trade & Investment - Regional Directorate,POPULOUS LTD,145326,400.00
UK Trade and Investment Programme,UK Trade and Investment Programme,01-Apr-2011 ,Travel and Subsistence O'seas - Passport Development & Events,UK Trade & Investment - Regional Directorate,TEKNISOLAR LTD,143972,500.00
UK Trade and Investment Programme,UK Trade and Investment Programme,01-Apr-2011 ,Travel and Subsistence UK - Sector Events - UK,UK Trade & Investment - Sectors Group,CLARKES OF LONDON,145254,375.00
UK Trade and Investment Programme,UK Trade and Investment Programme,01-Apr-2011 ,Travel and Subsistence UK - Sector Events - UK,UK Trade & Investment - Sectors Group,MANCHESTER METROPOLITAN UNIVERSITY,145217,253.50
UK Trade and Investment Programme,UK Trade and Investment Programme,01-Apr-2011 ,Travel and Subsistence UK - Sector Events - UK,UK Trade & Investment - Sectors Group,MUNROS TRAVEL GROUP,145289,22440.00
UK Trade and Investment Programme,UK Trade and Investment Programme,01-Apr-2011 ,Travel and Subsistence UK - Sector Events - UK,UK Trade & Investment - Sectors Group,MUNROS TRAVEL GROUP,145289,2000.00
UK Trade and Investment Programme,UK Trade and Investment Programme,01-Apr-2011 ,Venue Hire - Trade Marketing Events,UK Trade & Investment - Regional Directorate,BARCELO CHELTENHAM PARK HOTEL,145344,544.67
UK Trade and Investment Programme,UK Trade and Investment Programme,01-Apr-2011 ,Venue Hire - Trade Marketing Events,UK Trade & Investment - Regional Directorate,PRO SERV CORPORATE LTD,145343,185.10
UK Trade and Investment Programme,UK Trade and Investment Programme,01-Apr-2011 ,Video Production Services - Inward Investment Publicity,UK Trade & Investment - Marketing  & Communications Group,KEY20 MEDIA LTD,145286,5495.00
UK Trade and Investment Programme,UK Trade and Investment Programme,01-Apr-2011 ,Video Production Services - UKTI Corporate Marketing,UK Trade & Investment - Marketing  & Communications Group,S K & E S MAHER T/A SKM PRODUCTIONS,145367,310.00
UK Trade and Investment Programme,UK Trade and Investment Programme,01-Apr-2011 ,Video Production Services - UKTI Corporate Marketing,UK Trade & Investment - Marketing  & Communications Group,S K & E S MAHER T/A SKM PRODUCTIONS,145369,310.00
UK Trade and Investment Programme,UK Trade and Investment Programme,04-Apr-2011 ,Authoring and Copywriting Costs - Trade Marketing Events,UK Trade & Investment - Regional Directorate,FRANCES BERRY,145400,553.50
UK Trade and Investment Programme,UK Trade and Investment Programme,04-Apr-2011 ,Authoring and Copywriting Costs - Trade Marketing Events,UK Trade & Investment - Regional Directorate,FRANCES BERRY,145400,256.50
UK Trade and Investment Programme,UK Trade and Investment Programme,04-Apr-2011 ,Basic Grants - SESA Solo Support Scheme,UK Trade & Investment - Sectors Group,ST ANDREWS GOLF EXPERIENCE LTD,145393,1000.00
UK Trade and Investment Programme,UK Trade and Investment Programme,04-Apr-2011 ,Basic Grants - Trade Show Access Programme,UK Trade & Investment - Sectors Group,BIOPARTNER. CO. UK LTD,145394,26000.00
UK Trade and Investment Programme,UK Trade and Investment Programme,04-Apr-2011 ,Basic Grants - Trade Show Access Programme,UK Trade & Investment - Sectors Group,COMMERCIAL HORTICULTURAL ASSOCIATION,145395,16800.00
UK Trade and Investment Programme,UK Trade and Investment Programme,04-Apr-2011 ,Basic Grants - Trade Show Access Programme,UK Trade & Investment - Sectors Group,ENERGY INDUSTRIES COUNCIL,145391,1800.00
UK Trade and Investment Programme,UK Trade and Investment Programme,04-Apr-2011 ,Basic Grants - Trade Show Access Programme,UK Trade & Investment - Sectors Group,INTELLECT,145399,16200.00
UK Trade and Investment Programme,UK Trade and Investment Programme,04-Apr-2011 ,Conference and seminar fees - NINJ Sector Events Abroad,UK Trade & Investment - International Group,TREASURER TO THE QUEEN,145359,2250.00
UK Trade and Investment Programme,UK Trade and Investment Programme,04-Apr-2011 ,Conference and seminar fees - NINJ Sector Events Abroad,UK Trade & Investment - International Group,TREASURER TO THE QUEEN,145359,900.00
UK Trade and Investment Programme,UK Trade and Investment Programme,04-Apr-2011 ,Design Services - Inward Investment Publicity,UK Trade & Investment - Marketing  & Communications Group,ACUMEN DESIGN CONSULTANCY LTD,145331,70.00
UK Trade and Investment Programme,UK Trade and Investment Programme,04-Apr-2011 ,Design Services - Inward Investment Publicity,UK Trade & Investment - Marketing  & Communications Group,ACUMEN DESIGN CONSULTANCY LTD,145332,210.00
UK Trade and Investment Programme,UK Trade and Investment Programme,04-Apr-2011 ,Design Services - Inward Investment Publicity,UK Trade & Investment - Marketing  & Communications Group,ACUMEN DESIGN CONSULTANCY LTD,145333,638.00
UK Trade and Investment Programme,UK Trade and Investment Programme,04-Apr-2011 ,Design Services - Inward Investment Publicity,UK Trade & Investment - Marketing  & Communications Group,ACUMEN DESIGN CONSULTANCY LTD,145334,210.00
UK Trade and Investment Programme,UK Trade and Investment Programme,04-Apr-2011 ,Design Services - Inward Investment Publicity,UK Trade & Investment - Marketing  & Communications Group,ACUMEN DESIGN CONSULTANCY LTD,145335,2100.00
UK Trade and Investment Programme,UK Trade and Investment Programme,04-Apr-2011 ,Design Services - Inward Investment Publicity,UK Trade & Investment - Marketing  & Communications Group,ACUMEN DESIGN CONSULTANCY LTD,145336,840.00
UK Trade and Investment Programme,UK Trade and Investment Programme,04-Apr-2011 ,Design Services - Inward Investment Publicity,UK Trade & Investment - Marketing  & Communications Group,ACUMEN DESIGN CONSULTANCY LTD,145337,210.00
UK Trade and Investment Programme,UK Trade and Investment Programme,04-Apr-2011 ,Design Services - Inward Investment Publicity,UK Trade & Investment - Marketing  & Communications Group,ACUMEN DESIGN CONSULTANCY LTD,145384,665.00
UK Trade and Investment Programme,UK Trade and Investment Programme,04-Apr-2011 ,Design Services - Marketing the Olympics,UK Trade & Investment - Marketing  & Communications Group,ACUMEN DESIGN CONSULTANCY LTD,145386,22120.00
UK Trade and Investment Programme,UK Trade and Investment Programme,04-Apr-2011 ,Design Services - Trade Marketing Publication,UK Trade & Investment - Sectors Group,OAKLEY ASSOCIATES LTD,145445,2325.00
UK Trade and Investment Programme,UK Trade and Investment Programme,04-Apr-2011 ,Design Services - UKTI Corporate Marketing,UK Trade & Investment - Marketing  & Communications Group,ACUMEN DESIGN CONSULTANCY LTD,145333,700.00
UK Trade and Investment Programme,UK Trade and Investment Programme,04-Apr-2011 ,Design Services - UKTI Corporate Marketing,UK Trade & Investment - Marketing  & Communications Group,ACUMEN DESIGN CONSULTANCY LTD,145339,420.00
UK Trade and Investment Programme,UK Trade and Investment Programme,04-Apr-2011 ,Design Services - UKTI Corporate Marketing,UK Trade & Investment - Marketing  & Communications Group,ACUMEN DESIGN CONSULTANCY LTD,145385,140.00
UK Trade and Investment Programme,UK Trade and Investment Programme,04-Apr-2011 ,Event Management - Gateway to Global Growth,UK Trade & Investment - Regional Directorate,RLN EAST LTD,143646,7200.00
UK Trade and Investment Programme,UK Trade and Investment Programme,04-Apr-2011 ,Event Management - NINJ Sector Events,UK Trade & Investment - Sectors Group,VENN GROUP LTD,145404,2553.18
UK Trade and Investment Programme,UK Trade and Investment Programme,04-Apr-2011 ,Event Management - Outward missions,UK Trade & Investment - Sectors Group,ENERGY INDUSTRIES COUNCIL,144628,7470.82
UK Trade and Investment Programme,UK Trade and Investment Programme,04-Apr-2011 ,Event Management - Outward missions,UK Trade & Investment - Sectors Group,ENERGY INDUSTRIES COUNCIL,144628,-7470.82
UK Trade and Investment Programme,UK Trade and Investment Programme,04-Apr-2011 ,Event Management - Outward missions,UK Trade & Investment - Sectors Group,ENERGY INDUSTRIES COUNCIL,144628,7470.82
UK Trade and Investment Programme,UK Trade and Investment Programme,04-Apr-2011 ,Event Management - Sector Events - Abroad,UK Trade & Investment - Sectors Group,BRITISH EXPERTISE,145375,6300.00
UK Trade and Investment Programme,UK Trade and Investment Programme,04-Apr-2011 ,Event Management - Sector Events - Abroad,UK Trade & Investment - Sectors Group,BRITISH EXPERTISE,145381,4181.40
UK Trade and Investment Programme,UK Trade and Investment Programme,04-Apr-2011 ,Event Management - Sector Events - Abroad,UK Trade & Investment - Sectors Group,BRITISH EXPERTISE,145381,202.60
UK Trade and Investment Programme,UK Trade and Investment Programme,04-Apr-2011 ,Event Management - Sector Events - Abroad,UK Trade & Investment - Sectors Group,J2C COMMUNICATION,144983,749.49
UK Trade and Investment Programme,UK Trade and Investment Programme,04-Apr-2011 ,Event Management - Trade Development Support,UK Trade & Investment - International Group,IPC MEDIA LTD,145389,3722.00
UK Trade and Investment Programme,UK Trade and Investment Programme,04-Apr-2011 ,Event Management - Trade Marketing Events,UK Trade & Investment - Regional Directorate,NEWHAM COLLEGE OF FURTHER EDUCATION,145424,675.00
UK Trade and Investment Programme,UK Trade and Investment Programme,04-Apr-2011 ,Media and Press Services - Inward Investment Publicity,UK Trade & Investment - Marketing  & Communications Group,FARRAR MEDIA INTERNATIONAL LTD,145392,10833.33
UK Trade and Investment Programme,UK Trade and Investment Programme,04-Apr-2011 ,Printed Publications - Sector Events - UK,UK Trade & Investment - Sectors Group,NAVYBLUE DESIGN GROUP LTD,145253,1660.00
UK Trade and Investment Programme,UK Trade and Investment Programme,04-Apr-2011 ,Printing Costs - Inward Investment Publications,UK Trade & Investment - Business Group,WHITEHOUSE MAINWARING DESIGN CONSULTANTS LTD,145370,575.00
UK Trade and Investment Programme,UK Trade and Investment Programme,04-Apr-2011 ,Printing Costs - Inward Investment Publications,UK Trade & Investment - Business Group,WHITEHOUSE MAINWARING DESIGN CONSULTANTS LTD,145370,55.00
UK Trade and Investment Programme,UK Trade and Investment Programme,04-Apr-2011 ,Printing Costs - UKTI Corporate Marketing,UK Trade & Investment - Marketing  & Communications Group,ACUMEN DESIGN CONSULTANCY LTD,145387,10788.00
UK Trade and Investment Programme,UK Trade and Investment Programme,04-Apr-2011 ,Professional Subscriptions - Inward Investment Research,UK Trade & Investment - Marketing  & Communications Group,GOVERNMENT KNOWLEDGE TRAINING LTD,145380,2800.00
UK Trade and Investment Programme,UK Trade and Investment Programme,04-Apr-2011 ,Professional Subscriptions - Inward Investment Research,UK Trade & Investment - Marketing  & Communications Group,GOVERNMENT KNOWLEDGE TRAINING LTD,145380,200.00
UK Trade and Investment Programme,UK Trade and Investment Programme,04-Apr-2011 ,Research and Development Costs - Inward Investment Research,UK Trade & Investment - Marketing  & Communications Group,OIA LTD,145383,48125.00
UK Trade and Investment Programme,UK Trade and Investment Programme,04-Apr-2011 ,Sponsors Grants - Trade Show Access Programme,UK Trade & Investment - Sectors Group,ENERGY INDUSTRIES COUNCIL,145390,240.00
UK Trade and Investment Programme,UK Trade and Investment Programme,04-Apr-2011 ,Sponsors Grants - Trade Show Access Programme,UK Trade & Investment - Sectors Group,INTELLECT,145398,2160.00
UK Trade and Investment Programme,UK Trade and Investment Programme,04-Apr-2011 ,Stand Construction Costs - ,UK Trade & Investment - Defence and Security Organisation,EDGE EXHIBITION DESIGN LTD,144165,165.00
UK Trade and Investment Programme,UK Trade and Investment Programme,04-Apr-2011 ,Stand Construction Costs - Trade Marketing Events,UK Trade & Investment - Marketing  & Communications Group,OCEAN DESIGNS LTD,145396,2514.00
UK Trade and Investment Programme,UK Trade and Investment Programme,04-Apr-2011 ,Training - General - Gateway to Global Growth,UK Trade & Investment - Regional Directorate,RLN EAST LTD,143646,2300.00
UK Trade and Investment Programme,UK Trade and Investment Programme,04-Apr-2011 ,Training - General - Passport Development & Events,UK Trade & Investment - Regional Directorate,LEARNING IMPACT INTERNATIONAL LTD,145378,2493.00
UK Trade and Investment Programme,UK Trade and Investment Programme,04-Apr-2011 ,Travel and Subsistence O'seas - International Business Specialists,UK Trade & Investment - Sectors Group,"Personal Expense, Name Witheld.",505157,982.13
UK Trade and Investment Programme,UK Trade and Investment Programme,04-Apr-2011 ,Travel and Subsistence O'seas - Market Visit Scheme,UK Trade & Investment - Regional Directorate,DIGITAL OUTLOOK COMMUNICATIONS LTD,145428,500.00
UK Trade and Investment Programme,UK Trade and Investment Programme,04-Apr-2011 ,Travel and Subsistence O'seas - Market Visit Scheme,UK Trade & Investment - Regional Directorate,EVEREARTH LTD,145446,750.00
UK Trade and Investment Programme,UK Trade and Investment Programme,04-Apr-2011 ,Travel and Subsistence O'seas - Market Visit Scheme,UK Trade & Investment - Regional Directorate,EVEREARTH LTD,145446,200.00
UK Trade and Investment Programme,UK Trade and Investment Programme,04-Apr-2011 ,Travel and Subsistence O'seas - Market Visit Scheme,UK Trade & Investment - Regional Directorate,FERALTONE LTD,145410,500.00
UK Trade and Investment Programme,UK Trade and Investment Programme,04-Apr-2011 ,Travel and Subsistence O'seas - Market Visit Scheme,UK Trade & Investment - Regional Directorate,GOLDHEART ASSEMBLY TOURING LLP,145403,500.00
UK Trade and Investment Programme,UK Trade and Investment Programme,04-Apr-2011 ,Travel and Subsistence O'seas - Market Visit Scheme,UK Trade & Investment - Regional Directorate,HOLY ROAR RECORDS,145419,500.00
UK Trade and Investment Programme,UK Trade and Investment Programme,04-Apr-2011 ,Travel and Subsistence O'seas - Market Visit Scheme,UK Trade & Investment - Regional Directorate,J.JS LEE,145431,250.00
UK Trade and Investment Programme,UK Trade and Investment Programme,04-Apr-2011 ,Travel and Subsistence O'seas - Market Visit Scheme,UK Trade & Investment - Regional Directorate,KILLER MUSIC LTD,145408,500.00
UK Trade and Investment Programme,UK Trade and Investment Programme,04-Apr-2011 ,Travel and Subsistence O'seas - Market Visit Scheme,UK Trade & Investment - Regional Directorate,ONCE UPON A TIME MANAGEMENT LTD,145430,500.00
UK Trade and Investment Programme,UK Trade and Investment Programme,04-Apr-2011 ,Travel and Subsistence O'seas - Market Visit Scheme,UK Trade & Investment - Regional Directorate,SCARS ON 45,145068,665.00
UK Trade and Investment Programme,UK Trade and Investment Programme,04-Apr-2011 ,Travel and Subsistence O'seas - Market Visit Scheme,UK Trade & Investment - Regional Directorate,SIBLING INTERNATIONAL LTD T/A SIBLING,145401,250.00
UK Trade and Investment Programme,UK Trade and Investment Programme,04-Apr-2011 ,Travel and Subsistence O'seas - Market Visit Scheme,UK Trade & Investment - Regional Directorate,SNOPAKE LTD,145423,800.00
UK Trade and Investment Programme,UK Trade and Investment Programme,04-Apr-2011 ,Travel and Subsistence O'seas - Market Visit Scheme,UK Trade & Investment - Regional Directorate,STABILITECH LTD,145420,1000.00
UK Trade and Investment Programme,UK Trade and Investment Programme,04-Apr-2011 ,Travel and Subsistence O'seas - Market Visit Scheme,UK Trade & Investment - Regional Directorate,VIRTUAL HUMAN RESOURCES LTD,145426,1000.00
UK Trade and Investment Programme,UK Trade and Investment Programme,04-Apr-2011 ,Travel and Subsistence O'seas - Regional Interchange Scheme,UK Trade & Investment - Regional Directorate,EAST MIDLANDS BUSINESS LTD,145438,488.03
UK Trade and Investment Programme,UK Trade and Investment Programme,04-Apr-2011 ,Travel and Subsistence O'seas - Trade Marketing Events,UK Trade & Investment - Regional Directorate,AEROSPACE DESIGN FACILITIES LTD,145422,1000.00
UK Trade and Investment Programme,UK Trade and Investment Programme,04-Apr-2011 ,Travel and Subsistence O'seas - Trade Marketing Events,UK Trade & Investment - Regional Directorate,DESIGNWERK UK LTD,145416,1000.00
UK Trade and Investment Programme,UK Trade and Investment Programme,04-Apr-2011 ,Travel and Subsistence O'seas - Trade Marketing Events,UK Trade & Investment - Regional Directorate,DOMINIC JONES JEWELLERY LTD,145429,250.00
UK Trade and Investment Programme,UK Trade and Investment Programme,04-Apr-2011 ,Travel and Subsistence O'seas - Trade Marketing Events,UK Trade & Investment - Regional Directorate,EAST OF ENGLAND IDB LTD,145376,3500.00
UK Trade and Investment Programme,UK Trade and Investment Programme,04-Apr-2011 ,Travel and Subsistence O'seas - Trade Marketing Events,UK Trade & Investment - Regional Directorate,EAST OF ENGLAND IDB LTD,145377,815.71
UK Trade and Investment Programme,UK Trade and Investment Programme,04-Apr-2011 ,Travel and Subsistence O'seas - Trade Marketing Events,UK Trade & Investment - Regional Directorate,EAST OF ENGLAND IDB LTD,145440,300.00
UK Trade and Investment Programme,UK Trade and Investment Programme,04-Apr-2011 ,Travel and Subsistence O'seas - Trade Marketing Events,UK Trade & Investment - Regional Directorate,EAST OF ENGLAND IDB LTD,145442,600.00
UK Trade and Investment Programme,UK Trade and Investment Programme,04-Apr-2011 ,Travel and Subsistence O'seas - Trade Marketing Events,UK Trade & Investment - Regional Directorate,ELISHA TELECOM LTD,145412,1000.00
UK Trade and Investment Programme,UK Trade and Investment Programme,04-Apr-2011 ,Travel and Subsistence O'seas - Trade Marketing Events,UK Trade & Investment - Regional Directorate,MARRIOTT HARRISON,145415,750.00
UK Trade and Investment Programme,UK Trade and Investment Programme,04-Apr-2011 ,Travel and Subsistence O'seas - Trade Marketing Events,UK Trade & Investment - Regional Directorate,PUBLIC ADMINISTRATION INTERNATIONAL LTD(PAI),145409,1000.00
UK Trade and Investment Programme,UK Trade and Investment Programme,04-Apr-2011 ,Travel and Subsistence O'seas - Trade Marketing Events,UK Trade & Investment - Regional Directorate,WINCKWORTH SHERWOOD LLP,145427,1000.00
UK Trade and Investment Programme,UK Trade and Investment Programme,04-Apr-2011 ,Travel and Subsistence O'seas - Trade Marketing Events,UK Trade & Investment - Regional Directorate,WINE & SPIRIT EDUCATION TRUST,145425,1000.00
UK Trade and Investment Programme,UK Trade and Investment Programme,04-Apr-2011 ,Venue Hire - Passport Development & Events,UK Trade & Investment - Regional Directorate,"IMAGO @ LOUGHBOROUGH LIMITED T/A IMAGO, THE LINK HOTEL & HOLYWELL PARK",145434,441.67
UK Trade and Investment Programme,UK Trade and Investment Programme,04-Apr-2011 ,Venue Hire - Trade Marketing Events,UK Trade & Investment - Regional Directorate,DURHAM BUSINESS GROUP (NE) LTD,145379,1250.00
UK Trade and Investment Programme,UK Trade and Investment Programme,04-Apr-2011 ,Venue Hire - Trade Marketing Events,UK Trade & Investment - Regional Directorate,"IMAGO @ LOUGHBOROUGH LIMITED T/A IMAGO, THE LINK HOTEL & HOLYWELL PARK",145432,675.00
UK Trade and Investment Programme,UK Trade and Investment Programme,04-Apr-2011 ,Video Production Services - Inward Investment Publicity,UK Trade & Investment - Marketing  & Communications Group,KEN CLAY,145364,104.00
UK Trade and Investment Programme,UK Trade and Investment Programme,04-Apr-2011 ,Video Production Services - Inward Investment Publicity,UK Trade & Investment - Marketing  & Communications Group,KEN CLAY,145364,38.00
UK Trade and Investment Programme,UK Trade and Investment Programme,04-Apr-2011 ,Video Production Services - Inward Investment Publicity,UK Trade & Investment - Marketing  & Communications Group,KEN CLAY,145368,88.00
UK Trade and Investment Programme,UK Trade and Investment Programme,05-Apr-2011 ,Advertising - Inward Investment Publications,UK Trade & Investment - Marketing  & Communications Group,DAWSON MEDIA DIRECT LTD,145468,1000.00
UK Trade and Investment Programme,UK Trade and Investment Programme,05-Apr-2011 ,Authoring and Copywriting Costs - Inward Investment Publications,UK Trade & Investment - Marketing  & Communications Group,CODEGENT LTD,145466,10300.00
UK Trade and Investment Programme,UK Trade and Investment Programme,05-Apr-2011 ,Authoring and Copywriting Costs - Trade Marketing Publicity,UK Trade & Investment - Marketing  & Communications Group,KREATIVITY LTD,145475,5930.00
UK Trade and Investment Programme,UK Trade and Investment Programme,05-Apr-2011 ,Basic Grants - SESA Solo Support Scheme,UK Trade & Investment - Sectors Group,RAINBOW COSMETICS (MANCHESTER) LTD,145502,1000.00
UK Trade and Investment Programme,UK Trade and Investment Programme,05-Apr-2011 ,Basic Grants - SESA Solo Support Scheme,UK Trade & Investment - Sectors Group,RIVA GLOBAL LTD,145463,1000.00
UK Trade and Investment Programme,UK Trade and Investment Programme,05-Apr-2011 ,Basic Grants - SESA Solo Support Scheme,UK Trade & Investment - Sectors Group,THINK RESEARCH LTD,145465,1000.00
UK Trade and Investment Programme,UK Trade and Investment Programme,05-Apr-2011 ,Basic Grants - SESA Solo Support Scheme,UK Trade & Investment - Sectors Group,XTRACT FILTRATION SYSTEMS LTD,145505,1000.00
UK Trade and Investment Programme,UK Trade and Investment Programme,05-Apr-2011 ,Catering - Trade Marketing Events,UK Trade & Investment - Regional Directorate,EEF LTD,145494,756.00
UK Trade and Investment Programme,UK Trade and Investment Programme,05-Apr-2011 ,Catering - Trade Marketing Events,UK Trade & Investment - Regional Directorate,LINDLEY CATERINGLTD,145504,21.92
UK Trade and Investment Programme,UK Trade and Investment Programme,05-Apr-2011 ,Catering - Trade Marketing Events,UK Trade & Investment - Defence and Security Organisation,MG CATERERS (LONDON) LTD,145508,2485.33
UK Trade and Investment Programme,UK Trade and Investment Programme,05-Apr-2011 ,Design Services - Trade Marketing Publication,UK Trade & Investment - Sectors Group,ACUMEN DESIGN CONSULTANCY LTD,145449,190.00
UK Trade and Investment Programme,UK Trade and Investment Programme,05-Apr-2011 ,Design Services - Trade Marketing Publication,UK Trade & Investment - Marketing  & Communications Group,WHITEHOUSE MAINWARING DESIGN CONSULTANTS LTD,145477,3500.00
UK Trade and Investment Programme,UK Trade and Investment Programme,05-Apr-2011 ,Design Services - Trade Marketing Publicity,UK Trade & Investment - Marketing  & Communications Group,STERLING PRESS LTD,145313,9500.00
UK Trade and Investment Programme,UK Trade and Investment Programme,05-Apr-2011 ,Development Cost - Website (AUC) - Clearing Account - Balance Sheet,UK Trade & Investment - IT and Finance Group,METHODS CONSULTING LTD,145478,5400.00
UK Trade and Investment Programme,UK Trade and Investment Programme,05-Apr-2011 ,Development Cost - Website (AUC) - Clearing Account - Balance Sheet,UK Trade & Investment - IT and Finance Group,METHODS CONSULTING LTD,145478,2520.00
UK Trade and Investment Programme,UK Trade and Investment Programme,05-Apr-2011 ,Event Management - Inward Investment Publicity,UK Trade & Investment - Olympics Unit,SHELTON FLEMING ASSOCIATES LTD,145459,10000.00
UK Trade and Investment Programme,UK Trade and Investment Programme,05-Apr-2011 ,Event Management - NINJ Sector Events,UK Trade & Investment - Sectors Group,BRACKEN PRESENTATIONS LTD,145447,20170.00
UK Trade and Investment Programme,UK Trade and Investment Programme,05-Apr-2011 ,Event Management - NINJ Sector Events,UK Trade & Investment - Sectors Group,BRACKEN PRESENTATIONS LTD,145447,21495.01
UK Trade and Investment Programme,UK Trade and Investment Programme,05-Apr-2011 ,Event Management - NINJ Sector Events,UK Trade & Investment - Sectors Group,BRACKEN PRESENTATIONS LTD,145447,-20170.00
UK Trade and Investment Programme,UK Trade and Investment Programme,05-Apr-2011 ,Event Management - NINJ Sector Events,UK Trade & Investment - Sectors Group,BRACKEN PRESENTATIONS LTD,145447,20170.00
UK Trade and Investment Programme,UK Trade and Investment Programme,05-Apr-2011 ,Event Management - Sector Events - Abroad,UK Trade & Investment - Sectors Group,ON/OFF LTD,145499,10000.00
UK Trade and Investment Programme,UK Trade and Investment Programme,05-Apr-2011 ,Event Management - Sector Events - Abroad,UK Trade & Investment - Sectors Group,UNIVERSITY OF THE ARTS LONDON,145490,15000.00
UK Trade and Investment Programme,UK Trade and Investment Programme,05-Apr-2011 ,Event Management - Sector Events - UK,UK Trade & Investment - Sectors Group,CHEMICALS NORTHWEST LTD,145489,4200.00
UK Trade and Investment Programme,UK Trade and Investment Programme,05-Apr-2011 ,Event Management - Sector Events - UK,UK Trade & Investment - Sectors Group,INSTITUT LAUE-LANGEVIN,145258,323.99
UK Trade and Investment Programme,UK Trade and Investment Programme,05-Apr-2011 ,Event Management - Sector Events - UK,UK Trade & Investment - Sectors Group,INSTITUT LAUE-LANGEVIN,145261,491.95
UK Trade and Investment Programme,UK Trade and Investment Programme,05-Apr-2011 ,Event Management - Sector Events - UK,UK Trade & Investment - Sectors Group,LORRAINE ELLISON,145476,1007.90
UK Trade and Investment Programme,UK Trade and Investment Programme,05-Apr-2011 ,Event Management - Trade Marketing Events,UK Trade & Investment - Defence and Security Organisation,AWARE PROMOTIONAL MERCHANDISE LTD,145507,162.00
UK Trade and Investment Programme,UK Trade and Investment Programme,05-Apr-2011 ,Event Management - Trade Marketing Events,UK Trade & Investment - Regional Directorate,CHINA BRITAIN BUSINESS COUNCIL,145462,5293.33
UK Trade and Investment Programme,UK Trade and Investment Programme,05-Apr-2011 ,Event Management - Trade Marketing Events,UK Trade & Investment - Regional Directorate,GOLDEN VISION LTD,145461,2120.40
UK Trade and Investment Programme,UK Trade and Investment Programme,05-Apr-2011 ,Event Management - Trade Marketing Events,UK Trade & Investment - Regional Directorate,GOLDEN VISION LTD,145461,3600.00
UK Trade and Investment Programme,UK Trade and Investment Programme,05-Apr-2011 ,Event Management - Trade Marketing Events,UK Trade & Investment - Regional Directorate,RUSSELL BUSINESS SERVICES LTD,145454,888.66
UK Trade and Investment Programme,UK Trade and Investment Programme,05-Apr-2011 ,Other Accomodation costs - ,UK Trade & Investment - Strategy and Human Resources Group,"Personal Expense, Name Witheld.",145511,16349.87
UK Trade and Investment Programme,UK Trade and Investment Programme,05-Apr-2011 ,"Other IT Services - UKTI Customer Data Standards, Migration and Mining",UK Trade & Investment - IT and Finance Group,S & S DATA LTD,145510,513.90
UK Trade and Investment Programme,UK Trade and Investment Programme,05-Apr-2011 ,"Other IT Services - UKTI Customer Data Standards, Migration and Mining",UK Trade & Investment - IT and Finance Group,S & S DATA LTD,145512,157.03
UK Trade and Investment Programme,UK Trade and Investment Programme,05-Apr-2011 ,"Other IT Services - UKTI Customer Data Standards, Migration and Mining",UK Trade & Investment - IT and Finance Group,S & S DATA LTD,145513,144.97
UK Trade and Investment Programme,UK Trade and Investment Programme,05-Apr-2011 ,"Other IT Services - UKTI Customer Data Standards, Migration and Mining",UK Trade & Investment - IT and Finance Group,S & S DATA LTD,145514,95.59
UK Trade and Investment Programme,UK Trade and Investment Programme,05-Apr-2011 ,"Other IT Services - UKTI Customer Data Standards, Migration and Mining",UK Trade & Investment - IT and Finance Group,S & S DATA LTD,145515,62.12
UK Trade and Investment Programme,UK Trade and Investment Programme,05-Apr-2011 ,"Other IT Services - UKTI Customer Data Standards, Migration and Mining",UK Trade & Investment - IT and Finance Group,S & S DATA LTD,145516,84.68
UK Trade and Investment Programme,UK Trade and Investment Programme,05-Apr-2011 ,"Other IT Services - UKTI Customer Data Standards, Migration and Mining",UK Trade & Investment - IT and Finance Group,S & S DATA LTD,145517,206.62
UK Trade and Investment Programme,UK Trade and Investment Programme,05-Apr-2011 ,Other Transportation Hire - Trade Marketing Events,UK Trade & Investment - Regional Directorate,SANDOWN LIMOUSINE,145500,420.00
UK Trade and Investment Programme,UK Trade and Investment Programme,05-Apr-2011 ,Professional Subscriptions - Inward Investment Publicity,UK Trade & Investment - Marketing  & Communications Group,EXACT TARGET LTD,145460,3840.00
UK Trade and Investment Programme,UK Trade and Investment Programme,05-Apr-2011 ,Research and Development Costs - Performance Measurement,UK Trade & Investment - Economics and Evaluation,OMB RESEARCH LTD,145458,1118.40
UK Trade and Investment Programme,UK Trade and Investment Programme,05-Apr-2011 ,Research and Development Costs - Performance Measurement,UK Trade & Investment - Economics and Evaluation,OMB RESEARCH LTD,145458,210.60
UK Trade and Investment Programme,UK Trade and Investment Programme,05-Apr-2011 ,Research and Development Costs - Performance Measurement,UK Trade & Investment - Economics and Evaluation,OMB RESEARCH LTD,145458,7449.00
UK Trade and Investment Programme,UK Trade and Investment Programme,05-Apr-2011 ,Scheme Management Charges - Fiscal Compass Programme,UK Trade & Investment - Sectors Group,PA CONSULTING GROUP LTD,145492,180312.17
UK Trade and Investment Programme,UK Trade and Investment Programme,05-Apr-2011 ,Scheme Management Charges - Fiscal Compass Programme,UK Trade & Investment - Sectors Group,PA CONSULTING GROUP LTD,145493,11034.53
UK Trade and Investment Programme,UK Trade and Investment Programme,05-Apr-2011 ,Scheme Management Charges - International Trade Team Contracting,UK Trade & Investment - Regional Directorate,GOLDEN VISION LTD,145461,977.34
UK Trade and Investment Programme,UK Trade and Investment Programme,05-Apr-2011 ,Scheme Management Charges - International Trade Team Contracting,UK Trade & Investment - Regional Directorate,GOLDEN VISION LTD,145461,737.50
UK Trade and Investment Programme,UK Trade and Investment Programme,05-Apr-2011 ,Scheme Management Charges - International Trade Team Contracting,UK Trade & Investment - Regional Directorate,RUSSELL BUSINESS SERVICES LTD,145454,5645.04
UK Trade and Investment Programme,UK Trade and Investment Programme,05-Apr-2011 ,Scheme Management Charges - International Trade Team Contracting,UK Trade & Investment - Regional Directorate,RUSSELL BUSINESS SERVICES LTD,145454,29.81
UK Trade and Investment Programme,UK Trade and Investment Programme,05-Apr-2011 ,Scheme Management Charges - International Trade Team Contracting,UK Trade & Investment - Regional Directorate,SGB ASSOCIATES,145455,877.01
UK Trade and Investment Programme,UK Trade and Investment Programme,05-Apr-2011 ,Scheme Management Charges - International Trade Team Contracting,UK Trade & Investment - Regional Directorate,SGB ASSOCIATES,145455,1950.00
UK Trade and Investment Programme,UK Trade and Investment Programme,05-Apr-2011 ,Scheme Management Charges - Passport Business Development Credits,UK Trade & Investment - Regional Directorate,ADVANCED INTERACTIVE MATERIALS SCIENCE LTD,144195,1500.00
UK Trade and Investment Programme,UK Trade and Investment Programme,05-Apr-2011 ,Scheme Management Charges - Passport Business Development Credits,UK Trade & Investment - Regional Directorate,ASSURED ENERGY SOLUTIONS LTD,145308,525.06
UK Trade and Investment Programme,UK Trade and Investment Programme,05-Apr-2011 ,Scheme Management Charges - Passport Business Development Credits,UK Trade & Investment - Regional Directorate,BANG PRODUCTS LTD,144935,1500.00
UK Trade and Investment Programme,UK Trade and Investment Programme,05-Apr-2011 ,Scheme Management Charges - Passport Business Development Credits,UK Trade & Investment - Regional Directorate,BOWMER-BOND NARROW FABRICS LTD,145316,530.10
UK Trade and Investment Programme,UK Trade and Investment Programme,05-Apr-2011 ,Scheme Management Charges - Passport Business Development Credits,UK Trade & Investment - Regional Directorate,CARLEY CONSULT LTD,144945,1500.00
UK Trade and Investment Programme,UK Trade and Investment Programme,05-Apr-2011 ,Scheme Management Charges - Passport Business Development Credits,UK Trade & Investment - Regional Directorate,CLEARVIEW TRAFFIC GROUP LTD,145302,1500.00
UK Trade and Investment Programme,UK Trade and Investment Programme,05-Apr-2011 ,Scheme Management Charges - Passport Business Development Credits,UK Trade & Investment - Regional Directorate,DAVID BROWN RESTORATIONS LTD,145208,905.65
UK Trade and Investment Programme,UK Trade and Investment Programme,05-Apr-2011 ,Scheme Management Charges - Passport Business Development Credits,UK Trade & Investment - Regional Directorate,DESIGN CATERING EQUIPMENT LTD,145310,431.25
UK Trade and Investment Programme,UK Trade and Investment Programme,05-Apr-2011 ,Scheme Management Charges - Passport Business Development Credits,UK Trade & Investment - Regional Directorate,LLOYD LOOM LTD T/A LLOYD LOOM FURNITURE,145209,584.71
UK Trade and Investment Programme,UK Trade and Investment Programme,05-Apr-2011 ,Scheme Management Charges - Passport Business Development Credits,UK Trade & Investment - Regional Directorate,MINTY HIGHWAY LTD,144715,251.40
UK Trade and Investment Programme,UK Trade and Investment Programme,05-Apr-2011 ,Scheme Management Charges - Passport Business Development Credits,UK Trade & Investment - Regional Directorate,NOBEBOP LTD,145301,575.65
UK Trade and Investment Programme,UK Trade and Investment Programme,05-Apr-2011 ,Scheme Management Charges - Passport Business Development Credits,UK Trade & Investment - Regional Directorate,NOBEBOP LTD,145301,924.35
UK Trade and Investment Programme,UK Trade and Investment Programme,05-Apr-2011 ,Scheme Management Charges - Passport Business Development Credits,UK Trade & Investment - Regional Directorate,S T RESEARCH LTD,144937,129.16
UK Trade and Investment Programme,UK Trade and Investment Programme,05-Apr-2011 ,Scheme Management Charges - Passport Business Development Credits,UK Trade & Investment - Regional Directorate,S T RESEARCH LTD,144938,102.82
UK Trade and Investment Programme,UK Trade and Investment Programme,05-Apr-2011 ,Scheme Management Charges - Passport Business Development Credits,UK Trade & Investment - Regional Directorate,S T RESEARCH LTD,144939,748.00
UK Trade and Investment Programme,UK Trade and Investment Programme,05-Apr-2011 ,Scheme Management Charges - Passport Business Development Credits,UK Trade & Investment - Regional Directorate,SIMPLY HEALTH & SAFETY LTD,145207,806.83
UK Trade and Investment Programme,UK Trade and Investment Programme,05-Apr-2011 ,Scheme Management Charges - Passport Business Development Credits,UK Trade & Investment - Regional Directorate,TEKMOS COMMUNICATIONS LTD,145306,1012.15
UK Trade and Investment Programme,UK Trade and Investment Programme,05-Apr-2011 ,Scheme Management Charges - Passport Business Development Credits,UK Trade & Investment - Regional Directorate,TELEVIEW MARKETING LTD,145206,1500.00
UK Trade and Investment Programme,UK Trade and Investment Programme,05-Apr-2011 ,Scheme Management Charges - Passport Business Development Credits,UK Trade & Investment - Regional Directorate,THE MICROCURRENT SITE LTD,144942,132.14
UK Trade and Investment Programme,UK Trade and Investment Programme,05-Apr-2011 ,Scheme Management Charges - Passport Business Development Credits,UK Trade & Investment - Regional Directorate,THE WAND COMPANY LTD,144944,500.00
UK Trade and Investment Programme,UK Trade and Investment Programme,05-Apr-2011 ,Scheme Management Charges - Passport Business Development Credits,UK Trade & Investment - Regional Directorate,THE WAND COMPANY LTD,144944,1000.00
UK Trade and Investment Programme,UK Trade and Investment Programme,05-Apr-2011 ,Sponsorship - Trade Marketing Events,UK Trade & Investment - Regional Directorate,GOLDEN VISION LTD,145461,3600.00
UK Trade and Investment Programme,UK Trade and Investment Programme,05-Apr-2011 ,Sponsorship - Trade Marketing Events,UK Trade & Investment - Regional Directorate,GOLDEN VISION LTD,145461,282.92
UK Trade and Investment Programme,UK Trade and Investment Programme,05-Apr-2011 ,Stand Space/rental costs - Trade Marketing Events,UK Trade & Investment - Regional Directorate,GLE INVESTMENTS LTD,145467,6748.85
UK Trade and Investment Programme,UK Trade and Investment Programme,05-Apr-2011 ,Training - General - Passport Development & Events,UK Trade & Investment - Regional Directorate,LEARNING IMPACT INTERNATIONAL LTD,145503,1366.34
UK Trade and Investment Programme,UK Trade and Investment Programme,05-Apr-2011 ,Travel and Subsistence O'seas - Market Visit Scheme,UK Trade & Investment - Regional Directorate,AGENT PROVOCATEUR LTD,145464,730.00
UK Trade and Investment Programme,UK Trade and Investment Programme,05-Apr-2011 ,Travel and Subsistence O'seas - Market Visit Scheme,UK Trade & Investment - Regional Directorate,ALDERCOTE LTD,145450,665.00
UK Trade and Investment Programme,UK Trade and Investment Programme,05-Apr-2011 ,Travel and Subsistence O'seas - Market Visit Scheme,UK Trade & Investment - Regional Directorate,DINOSAUR PILE-UP LTD,145453,665.00
UK Trade and Investment Programme,UK Trade and Investment Programme,05-Apr-2011 ,Travel and Subsistence O'seas - Market Visit Scheme,UK Trade & Investment - Regional Directorate,DINOSAUR PILE-UP LTD,145453,160.00
UK Trade and Investment Programme,UK Trade and Investment Programme,05-Apr-2011 ,Travel and Subsistence O'seas - Market Visit Scheme,UK Trade & Investment - Regional Directorate,FULL TIME GROUP LIMITED,145498,260.00
UK Trade and Investment Programme,UK Trade and Investment Programme,05-Apr-2011 ,Travel and Subsistence O'seas - Market Visit Scheme,UK Trade & Investment - Regional Directorate,MICRODAT.CO.UK LTD,145495,665.00
UK Trade and Investment Programme,UK Trade and Investment Programme,05-Apr-2011 ,Travel and Subsistence O'seas - Market Visit Scheme,UK Trade & Investment - Regional Directorate,MOSHI MOSHI RECORDS LTD,145471,500.00
UK Trade and Investment Programme,UK Trade and Investment Programme,05-Apr-2011 ,Travel and Subsistence O'seas - Market Visit Scheme,UK Trade & Investment - Regional Directorate,S.R. CONTROLS LTD,145451,995.00
UK Trade and Investment Programme,UK Trade and Investment Programme,05-Apr-2011 ,Travel and Subsistence O'seas - Market Visit Scheme,UK Trade & Investment - Regional Directorate,SCHOOL OF THOUGHT 2000 LTD,145452,400.00
UK Trade and Investment Programme,UK Trade and Investment Programme,05-Apr-2011 ,Travel and Subsistence O'seas - Market Visit Scheme,UK Trade & Investment - Regional Directorate,SPY COLLEGE LTD,145474,500.00
UK Trade and Investment Programme,UK Trade and Investment Programme,05-Apr-2011 ,Travel and Subsistence O'seas - Market Visit Scheme,UK Trade & Investment - Regional Directorate,TEAMLY LTD,145473,500.00
UK Trade and Investment Programme,UK Trade and Investment Programme,05-Apr-2011 ,Travel and Subsistence O'seas - Market Visit Scheme,UK Trade & Investment - Regional Directorate,THE BIO NANO CENTRE LTD T/A BIO NANO CONSULTING,145497,1000.00
UK Trade and Investment Programme,UK Trade and Investment Programme,05-Apr-2011 ,Travel and Subsistence O'seas - Market Visit Scheme,UK Trade & Investment - Regional Directorate,VECTOR EUROPE BUSINESS CONSULTANTS LTD,145472,800.00
UK Trade and Investment Programme,UK Trade and Investment Programme,05-Apr-2011 ,Travel and Subsistence O'seas - Market Visit Scheme,UK Trade & Investment - Regional Directorate,WHOSAMPLED.COM LTD,145470,500.00
UK Trade and Investment Programme,UK Trade and Investment Programme,05-Apr-2011 ,Travel and Subsistence O'seas - Trade Marketing Events,UK Trade & Investment - Regional Directorate,MAHI FINE FOODS LTD,145469,1000.00
UK Trade and Investment Programme,UK Trade and Investment Programme,05-Apr-2011 ,Travel and Subsistence UK - International Trade Team Contracting,UK Trade & Investment - Regional Directorate,SGB ASSOCIATES,145455,1360.60
UK Trade and Investment Programme,UK Trade and Investment Programme,05-Apr-2011 ,Travel and Subsistence UK - International Trade Team Contracting,UK Trade & Investment - Regional Directorate,SGB ASSOCIATES,145455,331.87
UK Trade and Investment Programme,UK Trade and Investment Programme,05-Apr-2011 ,Venue Hire - Trade Marketing Events,UK Trade & Investment - Regional Directorate,SODEXO LTD T/A SODEXO PRESTIGE,145501,731.25
UK Trade and Investment Programme,UK Trade and Investment Programme,05-Apr-2011 ,Video Production Services - Trade Marketing Events,UK Trade & Investment - Defence and Security Organisation,GLOBAL MEDIA APPLICATIONS LTD,143734,2400.00
UK Trade and Investment Programme,UK Trade and Investment Programme,06-Apr-2011 ,Advertising - Sector Events - UK,UK Trade & Investment - Sectors Group,EVENT GUIDES LTD,145536,2744.07
UK Trade and Investment Programme,UK Trade and Investment Programme,06-Apr-2011 ,Authoring and Copywriting Costs - Trade Marketing Publicity,UK Trade & Investment - Marketing  & Communications Group,DAVID HAWTHORN,145569,602.64
UK Trade and Investment Programme,UK Trade and Investment Programme,06-Apr-2011 ,Bank Charges - Commercial Banks - Overseas Market Introduction Service,UK Trade & Investment - Regional Directorate,DTI OTSS COSTS A\C,145506,25.70
UK Trade and Investment Programme,UK Trade and Investment Programme,06-Apr-2011 ,Basic Grants - SESA Solo Support Scheme,UK Trade & Investment - Sectors Group,WCT SOLUTIONS & TRAINING LTD,145562,1000.00
UK Trade and Investment Programme,UK Trade and Investment Programme,06-Apr-2011 ,Basic Grants - Trade Show Access Programme,UK Trade & Investment - Sectors Group,BIRMINGHAM CHAMBER OF COMMERCE AND INDUSTRY,145583,5000.00
UK Trade and Investment Programme,UK Trade and Investment Programme,06-Apr-2011 ,Basic Grants - Trade Show Access Programme,UK Trade & Investment - Sectors Group,BRITISH PIG ASSOCIATION,145552,27000.00
UK Trade and Investment Programme,UK Trade and Investment Programme,06-Apr-2011 ,Basic Grants - Trade Show Access Programme,UK Trade & Investment - Sectors Group,PS8 LTD,145540,16800.00
UK Trade and Investment Programme,UK Trade and Investment Programme,06-Apr-2011 ,Design Services - Trade Marketing Publication,UK Trade & Investment - Sectors Group,ACUMEN DESIGN CONSULTANCY LTD,145397,140.00
UK Trade and Investment Programme,UK Trade and Investment Programme,06-Apr-2011 ,Development Cost - Website (AUC) - Clearing Account - Balance Sheet,UK Trade & Investment - IT and Finance Group,PARASOL LTD,144956,4716.00
UK Trade and Investment Programme,UK Trade and Investment Programme,06-Apr-2011 ,Development Cost - Website (AUC) - Clearing Account - Balance Sheet,UK Trade & Investment - IT and Finance Group,PARASOL LTD,144956,1224.00
UK Trade and Investment Programme,UK Trade and Investment Programme,06-Apr-2011 ,Event Management - Gateway to Global Growth,UK Trade & Investment - Regional Directorate,GREATER LONDON ENTERPRISE LTD,145563,3000.00
UK Trade and Investment Programme,UK Trade and Investment Programme,06-Apr-2011 ,Event Management - Inward Investment Publicity,UK Trade & Investment - Marketing  & Communications Group,CHC SCOTIA LTD,145546,2400.00
UK Trade and Investment Programme,UK Trade and Investment Programme,06-Apr-2011 ,Event Management - Outward missions,UK Trade & Investment - Sectors Group,ASSOCIATION OF BRITISH MINING EQUIPMENT COMPANIES,145572,12260.00
UK Trade and Investment Programme,UK Trade and Investment Programme,06-Apr-2011 ,Event Management - Outward missions,UK Trade & Investment - Sectors Group,ASSOCIATION OF BRITISH MINING EQUIPMENT COMPANIES,145572,40.00
UK Trade and Investment Programme,UK Trade and Investment Programme,06-Apr-2011 ,Event Management - Outward missions,UK Trade & Investment - Sectors Group,BIGMEDIA LTD T/A CHINWAG,145580,2500.00
UK Trade and Investment Programme,UK Trade and Investment Programme,06-Apr-2011 ,Event Management - Outward missions,UK Trade & Investment - Sectors Group,BIGMEDIA LTD T/A CHINWAG,145580,10500.00
UK Trade and Investment Programme,UK Trade and Investment Programme,06-Apr-2011 ,Event Management - Outward missions,UK Trade & Investment - Sectors Group,BIGMEDIA LTD T/A CHINWAG,145582,12140.00
UK Trade and Investment Programme,UK Trade and Investment Programme,06-Apr-2011 ,Event Management - Outward missions,UK Trade & Investment - Sectors Group,BIGMEDIA LTD T/A CHINWAG,145582,12240.00
UK Trade and Investment Programme,UK Trade and Investment Programme,06-Apr-2011 ,Event Management - Sector Events - Abroad,UK Trade & Investment - Sectors Group,BRITISH FASHION COUNCIL,145565,15000.00
UK Trade and Investment Programme,UK Trade and Investment Programme,06-Apr-2011 ,Event Management - Sector Events - Abroad,UK Trade & Investment - Sectors Group,CHAMBERLINK LTD T/A BUSINESS SUPPORT SOLUTIONS,145559,2400.00
UK Trade and Investment Programme,UK Trade and Investment Programme,06-Apr-2011 ,Event Management - Sector Events - Abroad,UK Trade & Investment - Sectors Group,SMMT LTD,145543,15900.00
UK Trade and Investment Programme,UK Trade and Investment Programme,06-Apr-2011 ,Event Management - Sector Events - UK,UK Trade & Investment - Sectors Group,BIGMEDIA LTD T/A CHINWAG,145578,6650.00
UK Trade and Investment Programme,UK Trade and Investment Programme,06-Apr-2011 ,Event Management - Sector Events - UK,UK Trade & Investment - Sectors Group,BRACKEN PRESENTATIONS LTD,145587,34180.50
UK Trade and Investment Programme,UK Trade and Investment Programme,06-Apr-2011 ,Event Management - Sector Events - UK,UK Trade & Investment - Sectors Group,BRACKEN PRESENTATIONS LTD,145587,18853.71
UK Trade and Investment Programme,UK Trade and Investment Programme,06-Apr-2011 ,Event Management - Sector Events - UK,UK Trade & Investment - Sectors Group,BUSINESS TO BUSINESS EXHIBITIONS LTD,145537,8902.50
UK Trade and Investment Programme,UK Trade and Investment Programme,06-Apr-2011 ,Event Management - Sector Events - UK,UK Trade & Investment - Sectors Group,BUSINESS TO BUSINESS EXHIBITIONS LTD,145537,8726.00
UK Trade and Investment Programme,UK Trade and Investment Programme,06-Apr-2011 ,Event Management - Sector Events - UK,UK Trade & Investment - Sectors Group,BUSINESS TO BUSINESS EXHIBITIONS LTD,145537,648.16
UK Trade and Investment Programme,UK Trade and Investment Programme,06-Apr-2011 ,Event Management - Sector Events - UK,UK Trade & Investment - Sectors Group,BUSINESS TO BUSINESS EXHIBITIONS LTD,145538,9535.32
UK Trade and Investment Programme,UK Trade and Investment Programme,06-Apr-2011 ,Event Management - Sector Events - UK,UK Trade & Investment - Sectors Group,BUSINESS TO BUSINESS EXHIBITIONS LTD,145538,8726.00
UK Trade and Investment Programme,UK Trade and Investment Programme,06-Apr-2011 ,Event Management - Sector Events - UK,UK Trade & Investment - Sectors Group,BUSINESS TO BUSINESS EXHIBITIONS LTD,145538,379.77
UK Trade and Investment Programme,UK Trade and Investment Programme,06-Apr-2011 ,Event Management - Sector Events - UK,UK Trade & Investment - Sectors Group,BUSINESS TO BUSINESS EXHIBITIONS LTD,145539,4595.42
UK Trade and Investment Programme,UK Trade and Investment Programme,06-Apr-2011 ,Event Management - Sector Events - UK,UK Trade & Investment - Sectors Group,BUSINESS TO BUSINESS EXHIBITIONS LTD,145539,8726.00
UK Trade and Investment Programme,UK Trade and Investment Programme,06-Apr-2011 ,Event Management - Sector Events - UK,UK Trade & Investment - Sectors Group,BUSINESS TO BUSINESS EXHIBITIONS LTD,145539,497.92
UK Trade and Investment Programme,UK Trade and Investment Programme,06-Apr-2011 ,Other Accomodation costs - Trade Marketing Events,UK Trade & Investment - Defence and Security Organisation,CROWNE PLAZA LONDON-ST JAMES,145522,2183.00
UK Trade and Investment Programme,UK Trade and Investment Programme,06-Apr-2011 ,Other Accomodation costs - Trade Marketing Events,UK Trade & Investment - Defence and Security Organisation,CROWNE PLAZA LONDON-ST JAMES,145524,1530.00
UK Trade and Investment Programme,UK Trade and Investment Programme,06-Apr-2011 ,"Other IT Services - UKTI Customer Data Standards, Migration and Mining",UK Trade & Investment - IT and Finance Group,S & S DATA LTD,145519,52.04
UK Trade and Investment Programme,UK Trade and Investment Programme,06-Apr-2011 ,"Other IT Services - UKTI Customer Data Standards, Migration and Mining",UK Trade & Investment - IT and Finance Group,S & S DATA LTD,145525,2280.53
UK Trade and Investment Programme,UK Trade and Investment Programme,06-Apr-2011 ,"Other IT Services - UKTI Customer Data Standards, Migration and Mining",UK Trade & Investment - IT and Finance Group,S & S DATA LTD,145526,999.68
UK Trade and Investment Programme,UK Trade and Investment Programme,06-Apr-2011 ,"Other IT Services - UKTI Customer Data Standards, Migration and Mining",UK Trade & Investment - IT and Finance Group,S & S DATA LTD,145527,49.65
UK Trade and Investment Programme,UK Trade and Investment Programme,06-Apr-2011 ,Printing Costs - Inward Investment Publications,UK Trade & Investment - Marketing  & Communications Group,APPETITE CONSULTANCY LTD,145548,9568.00
UK Trade and Investment Programme,UK Trade and Investment Programme,06-Apr-2011 ,Printing Costs - Inward Investment Publications,UK Trade & Investment - Marketing  & Communications Group,APPETITE CONSULTANCY LTD,145550,-1650.00
UK Trade and Investment Programme,UK Trade and Investment Programme,06-Apr-2011 ,Professional Subscriptions - International Trade Team Contracting,UK Trade & Investment - Regional Directorate,SOUTH YORKSHIRE INTERNATIONAL TRADE FORUM (AN OPERATING DIVISION OF YORKSHIRE WORLD TRADE FORUM LTD),145576,250.00
UK Trade and Investment Programme,UK Trade and Investment Programme,06-Apr-2011 ,Promotional Materials - Trade Marketing Events,UK Trade & Investment - Marketing  & Communications Group,AWARE PROMOTIONAL MERCHANDISE LTD,145558,4644.00
UK Trade and Investment Programme,UK Trade and Investment Programme,06-Apr-2011 ,Research and Development Costs - Inward Investment Research,UK Trade & Investment - Business Group,S & S DATA LTD,145523,499.80
UK Trade and Investment Programme,UK Trade and Investment Programme,06-Apr-2011 ,Research and Development Costs - Sector Events - Abroad,UK Trade & Investment - Sectors Group,BRITISH EXPERTISE,145573,11025.00
UK Trade and Investment Programme,UK Trade and Investment Programme,06-Apr-2011 ,Scheme Management Charges - Sector Champion,UK Trade & Investment - Business Group,PA CONSULTING GROUP LTD,144858,85734.96
UK Trade and Investment Programme,UK Trade and Investment Programme,06-Apr-2011 ,Scheme Management Charges - Sector Champion,UK Trade & Investment - Business Group,PA CONSULTING GROUP LTD,144858,34265.04
UK Trade and Investment Programme,UK Trade and Investment Programme,06-Apr-2011 ,Sponsors Grants - Trade Show Access Programme,UK Trade & Investment - Sectors Group,BIRMINGHAM CHAMBER OF COMMERCE AND INDUSTRY,145585,1200.00
UK Trade and Investment Programme,UK Trade and Investment Programme,06-Apr-2011 ,Sponsors Grants - Trade Show Access Programme,UK Trade & Investment - Sectors Group,BRITISH PIG ASSOCIATION,145554,15600.00
UK Trade and Investment Programme,UK Trade and Investment Programme,06-Apr-2011 ,Sponsors Grants - Trade Show Access Programme,UK Trade & Investment - Sectors Group,PS8 LTD,145541,33780.00
UK Trade and Investment Programme,UK Trade and Investment Programme,06-Apr-2011 ,Stand Construction Costs - Trade Marketing Events,UK Trade & Investment - Marketing  & Communications Group,OCEAN DESIGNS LTD,145560,1976.00
UK Trade and Investment Programme,UK Trade and Investment Programme,06-Apr-2011 ,Stand Construction Costs - Trade Marketing Events,UK Trade & Investment - Marketing  & Communications Group,OCEAN DESIGNS LTD,145561,5746.00
UK Trade and Investment Programme,UK Trade and Investment Programme,06-Apr-2011 ,Stand Space/rental costs - Sector Events - Abroad,UK Trade & Investment - Sectors Group,INTEGRATED ENVIRONMENTAL SOLUTIONS LTD,145374,1000.00
UK Trade and Investment Programme,UK Trade and Investment Programme,06-Apr-2011 ,Survey Costs - Trade Marketing Publication,UK Trade & Investment - Sectors Group,S & S DATA LTD,145521,598.29
UK Trade and Investment Programme,UK Trade and Investment Programme,06-Apr-2011 ,Travel and Subsistence O'seas - Market Visit Scheme,UK Trade & Investment - Regional Directorate,BACKWOODSMAN LTD,145581,500.00
UK Trade and Investment Programme,UK Trade and Investment Programme,06-Apr-2011 ,Travel and Subsistence O'seas - Market Visit Scheme,UK Trade & Investment - Regional Directorate,CHRISTOPHER HOWARD T/A NINE MINUTE RECORDS,145584,665.00
UK Trade and Investment Programme,UK Trade and Investment Programme,06-Apr-2011 ,Travel and Subsistence O'seas - Market Visit Scheme,UK Trade & Investment - Regional Directorate,GWE BUSINESS WEST LTD,145528,600.00
UK Trade and Investment Programme,UK Trade and Investment Programme,06-Apr-2011 ,Travel and Subsistence O'seas - Market Visit Scheme,UK Trade & Investment - Regional Directorate,GWE BUSINESS WEST LTD,145529,650.00
UK Trade and Investment Programme,UK Trade and Investment Programme,06-Apr-2011 ,Travel and Subsistence O'seas - Market Visit Scheme,UK Trade & Investment - Regional Directorate,GWE BUSINESS WEST LTD,145529,500.00
UK Trade and Investment Programme,UK Trade and Investment Programme,06-Apr-2011 ,Travel and Subsistence O'seas - Market Visit Scheme,UK Trade & Investment - Regional Directorate,GWE BUSINESS WEST LTD,145529,670.00
UK Trade and Investment Programme,UK Trade and Investment Programme,06-Apr-2011 ,Travel and Subsistence O'seas - Market Visit Scheme,UK Trade & Investment - Regional Directorate,GWE BUSINESS WEST LTD,145530,200.00
UK Trade and Investment Programme,UK Trade and Investment Programme,06-Apr-2011 ,Travel and Subsistence O'seas - Market Visit Scheme,UK Trade & Investment - Regional Directorate,GWE BUSINESS WEST LTD,145531,500.00
UK Trade and Investment Programme,UK Trade and Investment Programme,06-Apr-2011 ,Travel and Subsistence O'seas - Market Visit Scheme,UK Trade & Investment - Regional Directorate,GWE BUSINESS WEST LTD,145531,500.00
UK Trade and Investment Programme,UK Trade and Investment Programme,06-Apr-2011 ,Travel and Subsistence O'seas - Market Visit Scheme,UK Trade & Investment - Regional Directorate,GWE BUSINESS WEST LTD,145531,200.00
UK Trade and Investment Programme,UK Trade and Investment Programme,06-Apr-2011 ,Travel and Subsistence O'seas - Market Visit Scheme,UK Trade & Investment - Regional Directorate,GWE BUSINESS WEST LTD,145531,500.00
UK Trade and Investment Programme,UK Trade and Investment Programme,06-Apr-2011 ,Travel and Subsistence O'seas - Market Visit Scheme,UK Trade & Investment - Regional Directorate,GWE BUSINESS WEST LTD,145531,500.00
UK Trade and Investment Programme,UK Trade and Investment Programme,06-Apr-2011 ,Travel and Subsistence O'seas - Market Visit Scheme,UK Trade & Investment - Regional Directorate,GWE BUSINESS WEST LTD,145531,200.00
UK Trade and Investment Programme,UK Trade and Investment Programme,06-Apr-2011 ,Travel and Subsistence O'seas - Market Visit Scheme,UK Trade & Investment - Regional Directorate,GWE BUSINESS WEST LTD,145532,650.00
UK Trade and Investment Programme,UK Trade and Investment Programme,06-Apr-2011 ,Travel and Subsistence O'seas - Market Visit Scheme,UK Trade & Investment - Regional Directorate,GWE BUSINESS WEST LTD,145532,500.00
UK Trade and Investment Programme,UK Trade and Investment Programme,06-Apr-2011 ,Travel and Subsistence O'seas - Market Visit Scheme,UK Trade & Investment - Regional Directorate,GWE BUSINESS WEST LTD,145532,500.00
UK Trade and Investment Programme,UK Trade and Investment Programme,06-Apr-2011 ,Travel and Subsistence O'seas - Market Visit Scheme,UK Trade & Investment - Regional Directorate,GWE BUSINESS WEST LTD,145532,200.00
UK Trade and Investment Programme,UK Trade and Investment Programme,06-Apr-2011 ,Travel and Subsistence O'seas - Market Visit Scheme,UK Trade & Investment - Regional Directorate,GWE BUSINESS WEST LTD,145533,450.00
UK Trade and Investment Programme,UK Trade and Investment Programme,06-Apr-2011 ,Travel and Subsistence O'seas - Market Visit Scheme,UK Trade & Investment - Regional Directorate,GWE BUSINESS WEST LTD,145533,500.00
UK Trade and Investment Programme,UK Trade and Investment Programme,06-Apr-2011 ,Travel and Subsistence O'seas - Market Visit Scheme,UK Trade & Investment - Regional Directorate,GWE BUSINESS WEST LTD,145533,450.00
UK Trade and Investment Programme,UK Trade and Investment Programme,06-Apr-2011 ,Travel and Subsistence O'seas - Market Visit Scheme,UK Trade & Investment - Regional Directorate,GWE BUSINESS WEST LTD,145534,250.00
UK Trade and Investment Programme,UK Trade and Investment Programme,06-Apr-2011 ,Travel and Subsistence O'seas - Market Visit Scheme,UK Trade & Investment - Regional Directorate,GWE BUSINESS WEST LTD,145534,750.00
UK Trade and Investment Programme,UK Trade and Investment Programme,06-Apr-2011 ,Travel and Subsistence O'seas - Market Visit Scheme,UK Trade & Investment - Regional Directorate,H WESTON & SONS LTD,145547,400.00
UK Trade and Investment Programme,UK Trade and Investment Programme,06-Apr-2011 ,Travel and Subsistence O'seas - Market Visit Scheme,UK Trade & Investment - Regional Directorate,HART MEDIA LTD,145564,500.00
UK Trade and Investment Programme,UK Trade and Investment Programme,06-Apr-2011 ,Travel and Subsistence O'seas - Market Visit Scheme,UK Trade & Investment - Regional Directorate,MOOOOODLE LTD,145579,500.00
UK Trade and Investment Programme,UK Trade and Investment Programme,06-Apr-2011 ,Travel and Subsistence O'seas - Sector Events - Abroad,UK Trade & Investment - Sectors Group,BRITISH EXPERTISE,145574,841.34
UK Trade and Investment Programme,UK Trade and Investment Programme,06-Apr-2011 ,Travel and Subsistence O'seas - Sector Events - Abroad,UK Trade & Investment - Sectors Group,RAILWAY INDUSTRY ASSOCIATION,145352,1153.44
UK Trade and Investment Programme,UK Trade and Investment Programme,06-Apr-2011 ,Travel and Subsistence O'seas - Short Term Business Attachments (STBA),UK Trade & Investment - Sectors Group,CHINA BRITAIN BUSINESS COUNCIL,145542,3964.45
UK Trade and Investment Programme,UK Trade and Investment Programme,06-Apr-2011 ,Travel and Subsistence O'seas - Trade Marketing Events,UK Trade & Investment - Regional Directorate,THE LONDON INTERNATIONAL FILM SCHOOL LTD T/A THE LONDON FILM SCHOOL,145566,1000.00
UK Trade and Investment Programme,UK Trade and Investment Programme,06-Apr-2011 ,Venue Hire - Trade Marketing Events,UK Trade & Investment - Defence and Security Organisation,BAA BUSINESS SUPPORT CENTRE LTD (HEATHROW AIRPORT),145518,480.00
UK Trade and Investment Programme,UK Trade and Investment Programme,06-Apr-2011 ,Video Production Services - Attracting Global Entrepreneurs,UK Trade & Investment - Business Group,CREATIVEWORKS PARTNERSHIP LLP,145545,7300.00
UK Trade and Investment Programme,UK Trade and Investment Programme,06-Apr-2011 ,Video Production Services - Attracting Global Entrepreneurs,UK Trade & Investment - Business Group,NAVYBLUE DESIGN GROUP LTD,145544,4347.50
UK Trade and Investment Programme,UK Trade and Investment Programme,07-Apr-2011 ,Basic Grants - SESA Solo Support Scheme,UK Trade & Investment - Sectors Group,EUROPEAN BACKGROUND LTD,145594,1000.00
UK Trade and Investment Programme,UK Trade and Investment Programme,07-Apr-2011 ,Basic Grants - SESA Solo Support Scheme,UK Trade & Investment - Sectors Group,HARPER & ASSOCIATES,145593,1000.00
UK Trade and Investment Programme,UK Trade and Investment Programme,07-Apr-2011 ,Development Cost - Website (AUC) - Clearing Account - Balance Sheet,UK Trade & Investment - IT and Finance Group,MICHAEL PAGE INTERNATIONAL RECRUITMENT LTD,145621,3106.56
UK Trade and Investment Programme,UK Trade and Investment Programme,07-Apr-2011 ,Event Management - Inward Investment Events,UK Trade & Investment - Marketing  & Communications Group,"Personal Expense, Name Witheld.",505158,772.15
UK Trade and Investment Programme,UK Trade and Investment Programme,07-Apr-2011 ,Event Management - Market Visit Scheme,UK Trade & Investment - Regional Directorate,ONELONDON TRADE AND INVESTMENT LTD,145605,56448.30
UK Trade and Investment Programme,UK Trade and Investment Programme,07-Apr-2011 ,Event Management - Sector Events - Abroad,UK Trade & Investment - Sectors Group,PENNWELL CORPORATION,145444,709.41
UK Trade and Investment Programme,UK Trade and Investment Programme,07-Apr-2011 ,Event Management - Sector Events - Abroad,UK Trade & Investment - Sectors Group,THE CONSTRUCTION EQUIPMENT ASSOCIATION (CEA),145591,5300.00
UK Trade and Investment Programme,UK Trade and Investment Programme,07-Apr-2011 ,Event Management - Sector Events - Abroad,UK Trade & Investment - Sectors Group,THE CONSTRUCTION EQUIPMENT ASSOCIATION (CEA),145591,1000.00
UK Trade and Investment Programme,UK Trade and Investment Programme,07-Apr-2011 ,Event Management - Sector Events - UK,UK Trade & Investment - Sectors Group,GLE CONSULTING LTD,145491,12000.00
UK Trade and Investment Programme,UK Trade and Investment Programme,07-Apr-2011 ,Event Management - Trade Marketing Events,UK Trade & Investment - Regional Directorate,EAST OF ENGLAND IDB LTD,145443,1359.00
UK Trade and Investment Programme,UK Trade and Investment Programme,07-Apr-2011 ,Event Management - Trade Marketing Events,UK Trade & Investment - Regional Directorate,EAST OF ENGLAND IDB LTD,145443,27.60
UK Trade and Investment Programme,UK Trade and Investment Programme,07-Apr-2011 ,Other Accomodation costs - ,UK Trade & Investment - Strategy and Human Resources Group,"Personal Expense, Name Witheld.",145509,790.20
UK Trade and Investment Programme,UK Trade and Investment Programme,07-Apr-2011 ,Other Accomodation costs - ,UK Trade & Investment - Strategy and Human Resources Group,"Personal Expense, Name Witheld.",145509,1000.00
UK Trade and Investment Programme,UK Trade and Investment Programme,07-Apr-2011 ,Other Transportation Hire - Inward Investment Publicity,UK Trade & Investment - Marketing  & Communications Group,ADDISON LEE plc,145571,1011.12
UK Trade and Investment Programme,UK Trade and Investment Programme,07-Apr-2011 ,Other Transportation Hire - Inward Investment Publicity,UK Trade & Investment - Marketing  & Communications Group,ADDISON LEE plc,145571,176.96
UK Trade and Investment Programme,UK Trade and Investment Programme,07-Apr-2011 ,Research and Development Costs - Economic Monitoring and Evaluation,UK Trade & Investment - Economics and Evaluation,LONDON ECONOMICS LTD,145597,14900.00
UK Trade and Investment Programme,UK Trade and Investment Programme,07-Apr-2011 ,Research and Development Costs - Economic Monitoring and Evaluation,UK Trade & Investment - Economics and Evaluation,LONDON ECONOMICS LTD,145599,25000.00
UK Trade and Investment Programme,UK Trade and Investment Programme,07-Apr-2011 ,Research and Development Costs - Trade Marketing Events,UK Trade & Investment - Regional Directorate,UK INDIA BUSINESS COUNCIL,145612,21500.00
UK Trade and Investment Programme,UK Trade and Investment Programme,07-Apr-2011 ,Scheme Management Charges - Gateway to Global Growth,UK Trade & Investment - Regional Directorate,EAST OF ENGLAND IDB LTD,145568,-53004.14
UK Trade and Investment Programme,UK Trade and Investment Programme,07-Apr-2011 ,Scheme Management Charges - Passport Business Development Credits,UK Trade & Investment - Regional Directorate,CORNISH CRABBERS LLP,145202,210.55
UK Trade and Investment Programme,UK Trade and Investment Programme,07-Apr-2011 ,Scheme Management Charges - Passport Business Development Credits,UK Trade & Investment - Regional Directorate,CORNISH CRABBERS LLP,145202,459.56
UK Trade and Investment Programme,UK Trade and Investment Programme,07-Apr-2011 ,Scheme Management Charges - Passport Business Development Credits,UK Trade & Investment - Regional Directorate,GO SUPERFOODS,145205,663.36
UK Trade and Investment Programme,UK Trade and Investment Programme,07-Apr-2011 ,Scheme Management Charges - Passport Business Development Credits,UK Trade & Investment - Regional Directorate,OCEANS-ESU LIMITED,145204,294.71
UK Trade and Investment Programme,UK Trade and Investment Programme,07-Apr-2011 ,Scheme Management Charges - Passport Business Development Credits,UK Trade & Investment - Regional Directorate,PLATTS & NISBETT LTD,145483,1252.50
UK Trade and Investment Programme,UK Trade and Investment Programme,07-Apr-2011 ,Scheme Management Charges - Passport Business Development Credits,UK Trade & Investment - Regional Directorate,POSITIVE NOISE LTD,145480,1063.49
UK Trade and Investment Programme,UK Trade and Investment Programme,07-Apr-2011 ,Scheme Management Charges - Passport Business Development Credits,UK Trade & Investment - Regional Directorate,PROFESSIONAL PROTECTION SYSTEMS LTD,145481,1500.00
UK Trade and Investment Programme,UK Trade and Investment Programme,07-Apr-2011 ,Scheme Management Charges - Passport Business Development Credits,UK Trade & Investment - Regional Directorate,REAL WORLD GROUP LTD,145485,273.60
UK Trade and Investment Programme,UK Trade and Investment Programme,07-Apr-2011 ,Scheme Management Charges - Passport Business Development Credits,UK Trade & Investment - Regional Directorate,RED CAPE LTD,145484,773.95
UK Trade and Investment Programme,UK Trade and Investment Programme,07-Apr-2011 ,Scheme Management Charges - Passport Business Development Credits,UK Trade & Investment - Regional Directorate,RUFF TUFF STUFF LTD,145201,1200.00
UK Trade and Investment Programme,UK Trade and Investment Programme,07-Apr-2011 ,Scheme Management Charges - Passport Business Development Credits,UK Trade & Investment - Regional Directorate,RUFF TUFF STUFF LTD,145201,300.00
UK Trade and Investment Programme,UK Trade and Investment Programme,07-Apr-2011 ,Scheme Management Charges - Passport Business Development Credits,UK Trade & Investment - Regional Directorate,S T RESEARCH LTD,145482,520.02
UK Trade and Investment Programme,UK Trade and Investment Programme,07-Apr-2011 ,Scheme Management Charges - Passport Business Development Credits,UK Trade & Investment - Regional Directorate,SPELTECH LTD,145479,1500.00
UK Trade and Investment Programme,UK Trade and Investment Programme,07-Apr-2011 ,Scheme Management Charges - Passport Business Development Credits,UK Trade & Investment - Regional Directorate,THE FAMOUS SHEFFIELD SHOP,145203,125.83
UK Trade and Investment Programme,UK Trade and Investment Programme,07-Apr-2011 ,Scheme Management Charges - Passport Business Development Credits,UK Trade & Investment - Regional Directorate,THE FAMOUS SHEFFIELD SHOP,145203,636.50
UK Trade and Investment Programme,UK Trade and Investment Programme,07-Apr-2011 ,Scheme Management Charges - Passport Business Development Credits,UK Trade & Investment - Regional Directorate,THE FAMOUS SHEFFIELD SHOP,145203,118.84
UK Trade and Investment Programme,UK Trade and Investment Programme,07-Apr-2011 ,Scheme Management Charges - Passport Business Development Credits,UK Trade & Investment - Regional Directorate,WEEKS ENVIRONMENTAL,144941,301.91
UK Trade and Investment Programme,UK Trade and Investment Programme,07-Apr-2011 ,Stand Space/rental costs - Sector Events - Abroad,UK Trade & Investment - Sectors Group,PENNWELL CORPORATION,145444,3941.16
UK Trade and Investment Programme,UK Trade and Investment Programme,07-Apr-2011 ,Travel and Subsistence O'seas - Market Visit Scheme,UK Trade & Investment - Regional Directorate,1886 INVESTMENTS LTD,145604,550.00
UK Trade and Investment Programme,UK Trade and Investment Programme,07-Apr-2011 ,Travel and Subsistence O'seas - Market Visit Scheme,UK Trade & Investment - Regional Directorate,CARAMEL LTD T/A CARAMEL BABY AND CHILD,145610,600.00
UK Trade and Investment Programme,UK Trade and Investment Programme,07-Apr-2011 ,Travel and Subsistence O'seas - Market Visit Scheme,UK Trade & Investment - Regional Directorate,GWE BUSINESS WEST LTD,145592,2500.00
UK Trade and Investment Programme,UK Trade and Investment Programme,07-Apr-2011 ,Travel and Subsistence O'seas - Market Visit Scheme,UK Trade & Investment - Regional Directorate,LOAKE BROTHERS LTD,145402,300.00
UK Trade and Investment Programme,UK Trade and Investment Programme,07-Apr-2011 ,Travel and Subsistence O'seas - Market Visit Scheme,UK Trade & Investment - Regional Directorate,PHILIP NEWBY T/A FRIENDS VS RECORDS,145606,500.00
UK Trade and Investment Programme,UK Trade and Investment Programme,07-Apr-2011 ,Travel and Subsistence O'seas - Market Visit Scheme,UK Trade & Investment - Regional Directorate,RELIABILITY NETWORKING LTD,145616,730.00
UK Trade and Investment Programme,UK Trade and Investment Programme,07-Apr-2011 ,Travel and Subsistence O'seas - Market Visit Scheme,UK Trade & Investment - Regional Directorate,ROCKFEEDBACK LTD,145608,500.00
UK Trade and Investment Programme,UK Trade and Investment Programme,07-Apr-2011 ,Travel and Subsistence O'seas - Market Visit Scheme,UK Trade & Investment - Regional Directorate,SPHERE MEDICAL LTD,145611,700.00
UK Trade and Investment Programme,UK Trade and Investment Programme,07-Apr-2011 ,Travel and Subsistence O'seas - Trade Marketing Events,UK Trade & Investment - Regional Directorate,CONDOR GROUP LTD,145648,1000.00
UK Trade and Investment Programme,UK Trade and Investment Programme,07-Apr-2011 ,Travel and Subsistence O'seas - Trade Marketing Events,UK Trade & Investment - Regional Directorate,SHIRLEY BROWNE INTERIORS,145607,1000.00
UK Trade and Investment Programme,UK Trade and Investment Programme,08-Apr-2011 ,Advertising - Trade Marketing Events,UK Trade & Investment - Regional Directorate,NCJ MEDIA LTD,145678,450.00
UK Trade and Investment Programme,UK Trade and Investment Programme,08-Apr-2011 ,Bank Charges - Commercial Banks - Overseas Market Introduction Service,UK Trade & Investment - Regional Directorate,DTI OTSS COSTS A\C,145732,681.36
UK Trade and Investment Programme,UK Trade and Investment Programme,08-Apr-2011 ,Bank Charges - Commercial Banks - Overseas Market Introduction Service,UK Trade & Investment - Regional Directorate,DTI OTSS COSTS A\C,145734,1041.31
UK Trade and Investment Programme,UK Trade and Investment Programme,08-Apr-2011 ,Entertainment UK - Trade Development Support,UK Trade & Investment - International Group,COMPASS GROUP UK,145660,272.64
UK Trade and Investment Programme,UK Trade and Investment Programme,08-Apr-2011 ,Entertainment UK - Trade Development Support,UK Trade & Investment - International Group,COMPASS GROUP UK,145660,48.36
UK Trade and Investment Programme,UK Trade and Investment Programme,08-Apr-2011 ,Event Management - Post Challenge Fund,UK Trade & Investment - Sectors Group,BRITISH CONTRACT FURNISHING ASSOCIATION,145763,153.00
UK Trade and Investment Programme,UK Trade and Investment Programme,08-Apr-2011 ,Event Management - Sector Events - Abroad,UK Trade & Investment - Sectors Group,RAINMAKER GLOBAL BUSINESS DEVELOPMENT LTD,145737,5000.00
UK Trade and Investment Programme,UK Trade and Investment Programme,08-Apr-2011 ,Event Management - Sector Events - Abroad,UK Trade & Investment - Sectors Group,RAINMAKER GLOBAL BUSINESS DEVELOPMENT LTD,145754,15000.00
UK Trade and Investment Programme,UK Trade and Investment Programme,08-Apr-2011 ,Event Management - Sector Events - UK,UK Trade & Investment - Sectors Group,BRITISH FASHION COUNCIL,145688,15000.00
UK Trade and Investment Programme,UK Trade and Investment Programme,08-Apr-2011 ,Media and Press Services - Inward Investment Publicity,UK Trade & Investment - Marketing  & Communications Group,PRECISE MEDIA MONITORING LTD,145875,3386.19
UK Trade and Investment Programme,UK Trade and Investment Programme,08-Apr-2011 ,Printed Publications - Passport Development & Events,UK Trade & Investment - Regional Directorate,GJ INTERNATIONAL LTD,145602,2870.00
UK Trade and Investment Programme,UK Trade and Investment Programme,08-Apr-2011 ,Printing Costs - Trade Marketing Publication,UK Trade & Investment - Marketing  & Communications Group,WHITEHOUSE MAINWARING DESIGN CONSULTANTS LTD,145695,8945.00
UK Trade and Investment Programme,UK Trade and Investment Programme,08-Apr-2011 ,Promotional Materials - Outward missions,UK Trade & Investment - Sectors Group,HONAV UK LTD,145747,456.00
UK Trade and Investment Programme,UK Trade and Investment Programme,08-Apr-2011 ,Research and Development Costs - Sector Events - Abroad,UK Trade & Investment - Sectors Group,CHINA BRITAIN BUSINESS COUNCIL,145677,16000.00
UK Trade and Investment Programme,UK Trade and Investment Programme,08-Apr-2011 ,Scheme Management Charges - Gateway to Global Growth,UK Trade & Investment - Regional Directorate,WEST MIDLANDS INTERNATIONAL TRADE LLP,145676,42753.22
UK Trade and Investment Programme,UK Trade and Investment Programme,08-Apr-2011 ,Stand Construction Costs - Trade Marketing Events,UK Trade & Investment - Marketing  & Communications Group,CLEARVIEW IMAGING SERVICES LTD,145765,1670.00
UK Trade and Investment Programme,UK Trade and Investment Programme,08-Apr-2011 ,Stand Construction Costs - Trade Marketing Events,UK Trade & Investment - Marketing  & Communications Group,CLEARVIEW IMAGING SERVICES LTD,145876,905.00
UK Trade and Investment Programme,UK Trade and Investment Programme,08-Apr-2011 ,Stand Construction Costs - Trade Marketing Events,UK Trade & Investment - Marketing  & Communications Group,CLEARVIEW IMAGING SERVICES LTD,145877,750.00
UK Trade and Investment Programme,UK Trade and Investment Programme,08-Apr-2011 ,Stand Construction Costs - Trade Marketing Events,UK Trade & Investment - Defence and Security Organisation,EDGE EXHIBITION DESIGN LTD,145589,2490.00
UK Trade and Investment Programme,UK Trade and Investment Programme,08-Apr-2011 ,Stand Construction Costs - Trade Marketing Events,UK Trade & Investment - Defence and Security Organisation,EDGE EXHIBITION DESIGN LTD,145590,6000.00
UK Trade and Investment Programme,UK Trade and Investment Programme,08-Apr-2011 ,Stand Space/rental costs - Trade Marketing Events,UK Trade & Investment - Defence and Security Organisation,SINGAPORE AIRSHOW & EVENTS PTE LTD,145210,33732.56
UK Trade and Investment Programme,UK Trade and Investment Programme,08-Apr-2011 ,Storage costs - Trade Marketing Events,UK Trade & Investment - Marketing  & Communications Group,CLEARVIEW IMAGING SERVICES LTD,145736,2000.00
UK Trade and Investment Programme,UK Trade and Investment Programme,08-Apr-2011 ,Training - General - Passport Development & Events,UK Trade & Investment - Regional Directorate,WEST MIDLANDS INTERNATIONAL TRADE LLP,145673,21644.12
UK Trade and Investment Programme,UK Trade and Investment Programme,08-Apr-2011 ,Travel and Subsistence O'seas - International Business Specialists,UK Trade & Investment - Sectors Group,"Personal Expense, Name Witheld.",505159,845.88
UK Trade and Investment Programme,UK Trade and Investment Programme,08-Apr-2011 ,Travel and Subsistence O'seas - International Business Specialists,UK Trade & Investment - Sectors Group,"Personal Expense, Name Witheld.",505160,10.00
UK Trade and Investment Programme,UK Trade and Investment Programme,08-Apr-2011 ,Travel and Subsistence O'seas - Market Visit Scheme,UK Trade & Investment - Regional Directorate,BLACK COUNTRY CHAMBER OF COMMERCE & INDUSTRY,145681,3107.99
UK Trade and Investment Programme,UK Trade and Investment Programme,08-Apr-2011 ,Travel and Subsistence O'seas - Market Visit Scheme,UK Trade & Investment - Regional Directorate,BLACK COUNTRY CHAMBER OF COMMERCE & INDUSTRY,145683,2108.98
UK Trade and Investment Programme,UK Trade and Investment Programme,08-Apr-2011 ,Travel and Subsistence O'seas - Market Visit Scheme,UK Trade & Investment - Regional Directorate,CURRYSLIM LTD T/A TINY DEOL,145952,530.00
UK Trade and Investment Programme,UK Trade and Investment Programme,08-Apr-2011 ,Travel and Subsistence O'seas - Market Visit Scheme,UK Trade & Investment - Regional Directorate,JAYAMAC PRODUCTIONS LTD,145751,730.00
UK Trade and Investment Programme,UK Trade and Investment Programme,08-Apr-2011 ,Travel and Subsistence O'seas - Market Visit Scheme,UK Trade & Investment - Regional Directorate,LAMINATING & COATING TECHNOLOGIES LTD,145897,730.00
UK Trade and Investment Programme,UK Trade and Investment Programme,08-Apr-2011 ,Travel and Subsistence O'seas - Market Visit Scheme,UK Trade & Investment - Regional Directorate,LOVE MY DOG LTD,145670,1000.00
UK Trade and Investment Programme,UK Trade and Investment Programme,08-Apr-2011 ,Travel and Subsistence O'seas - Market Visit Scheme,UK Trade & Investment - Regional Directorate,R & A SOFTWARE (SYSTEMS) LTD,145953,450.00
UK Trade and Investment Programme,UK Trade and Investment Programme,08-Apr-2011 ,Travel and Subsistence O'seas - Market Visit Scheme,UK Trade & Investment - Regional Directorate,SPORT STRUCTURES RECRUITMENT LTD,145680,600.00
UK Trade and Investment Programme,UK Trade and Investment Programme,08-Apr-2011 ,Travel and Subsistence O'seas - Market Visit Scheme,UK Trade & Investment - Regional Directorate,STERLING LOCKS LTD,145687,260.00
UK Trade and Investment Programme,UK Trade and Investment Programme,08-Apr-2011 ,Travel and Subsistence O'seas - Market Visit Scheme,UK Trade & Investment - Regional Directorate,STEVEN DAVIES & PAUL DAVIES T/A WRATH RECORDS,145693,665.00
UK Trade and Investment Programme,UK Trade and Investment Programme,08-Apr-2011 ,Travel and Subsistence O'seas - Market Visit Scheme,UK Trade & Investment - Regional Directorate,VETSTREAM LTD,145685,500.00
UK Trade and Investment Programme,UK Trade and Investment Programme,08-Apr-2011 ,Travel and Subsistence O'seas - Short Term Business Attachments (STBA),UK Trade & Investment - Sectors Group,SCOTT WILSON LTD,145672,134.24
UK Trade and Investment Programme,UK Trade and Investment Programme,08-Apr-2011 ,Travel and Subsistence O'seas - Trade Marketing Events,UK Trade & Investment - Regional Directorate,NOVOTEL MUMBAI JUHU BEACH,145436,517.14
UK Trade and Investment Programme,UK Trade and Investment Programme,08-Apr-2011 ,Travel and Subsistence O'seas - Trade Marketing Events,UK Trade & Investment - Regional Directorate,OTIS JAXON LTD,145674,1000.00
UK Trade and Investment Programme,UK Trade and Investment Programme,08-Apr-2011 ,Travel and Subsistence O'seas - Trade Marketing Events,UK Trade & Investment - Regional Directorate,RUPERT SANDERSON SHOES LTD,145735,1000.00
UK Trade and Investment Programme,UK Trade and Investment Programme,08-Apr-2011 ,Video Production Services - Sector Events - UK,UK Trade & Investment - Sectors Group,R GLASGOW & ASSOCIATES PUBLIC RELATIONS LTD t/a GLASGOWS,145728,4317.45
UK Trade and Investment Programme,UK Trade and Investment Programme,08-Apr-2011 ,Video Production Services - UKTI Corporate Marketing,UK Trade & Investment - Marketing  & Communications Group,MICK RAWSON,145740,370.00
UK Trade and Investment Programme,UK Trade and Investment Programme,08-Apr-2011 ,Video Production Services - UKTI Corporate Marketing,UK Trade & Investment - Marketing  & Communications Group,MICK RAWSON,145742,370.00
UK Trade and Investment Programme,UK Trade and Investment Programme,08-Apr-2011 ,Video Production Services - UKTI Corporate Marketing,UK Trade & Investment - Marketing  & Communications Group,MICK RAWSON,145743,1110.00
UK Trade and Investment Programme,UK Trade and Investment Programme,11-Apr-2011 ,Basic Grants - SESA Solo Support Scheme,UK Trade & Investment - Sectors Group,CHELSOM LTD,145979,1000.00
UK Trade and Investment Programme,UK Trade and Investment Programme,11-Apr-2011 ,Basic Grants - Trade Show Access Programme,UK Trade & Investment - Sectors Group,CONSTRUCTION EQUIPMENT ASSOCIATION,145977,22400.00
UK Trade and Investment Programme,UK Trade and Investment Programme,11-Apr-2011 ,Car Hire and Leasing - Inward Investment Publicity,UK Trade & Investment - Marketing  & Communications Group,CAROL PETERS TRAVEL LTD T/A CAROL PETERS COACH TRAVEL,145961,735.00
UK Trade and Investment Programme,UK Trade and Investment Programme,11-Apr-2011 ,Equipment Hire - Trade Development Support,UK Trade & Investment - International Group,UBIQUS UK LTD T/A WESTMINSTER SONUS COMMUNICATIONS,145962,385.00
UK Trade and Investment Programme,UK Trade and Investment Programme,11-Apr-2011 ,Event Management - Outward missions,UK Trade & Investment - Sectors Group,ADS GROUP LTD,145974,351.20
UK Trade and Investment Programme,UK Trade and Investment Programme,11-Apr-2011 ,Event Management - Outward missions,UK Trade & Investment - Sectors Group,BRANDON HILL COMMUNICATIONS LTD,145966,1517.13
UK Trade and Investment Programme,UK Trade and Investment Programme,11-Apr-2011 ,Event Management - Outward missions,UK Trade & Investment - Sectors Group,BRANDON HILL COMMUNICATIONS LTD,145967,2960.08
UK Trade and Investment Programme,UK Trade and Investment Programme,11-Apr-2011 ,Event Management - Outward missions,UK Trade & Investment - Sectors Group,BRANDON HILL COMMUNICATIONS LTD,145967,2350.00
UK Trade and Investment Programme,UK Trade and Investment Programme,11-Apr-2011 ,Event Management - Outward missions,UK Trade & Investment - Sectors Group,BRANDON HILL COMMUNICATIONS LTD,145967,3000.00
UK Trade and Investment Programme,UK Trade and Investment Programme,11-Apr-2011 ,Event Management - Outward missions,UK Trade & Investment - Sectors Group,BRANDON HILL COMMUNICATIONS LTD,145967,0.80
UK Trade and Investment Programme,UK Trade and Investment Programme,11-Apr-2011 ,Event Management - Post Challenge Fund,UK Trade & Investment - Sectors Group,ADS GROUP LTD,145974,1604.00
UK Trade and Investment Programme,UK Trade and Investment Programme,11-Apr-2011 ,Event Management - Post Challenge Fund,UK Trade & Investment - Sectors Group,ADS GROUP LTD,145974,645.19
UK Trade and Investment Programme,UK Trade and Investment Programme,11-Apr-2011 ,Event Management - Sector Events - Abroad,UK Trade & Investment - Sectors Group,THE TRAINING GATEWAY,145960,1000.00
UK Trade and Investment Programme,UK Trade and Investment Programme,11-Apr-2011 ,Event Management - Trade Development Support,UK Trade & Investment - International Group,THE CINNAMON CLUB,145975,375.00
UK Trade and Investment Programme,UK Trade and Investment Programme,11-Apr-2011 ,Event Management - Trade Marketing Events,UK Trade & Investment - Regional Directorate,CAMBRIDGESHIRE CHAMBER OF COMMERCE,145520,1550.00
UK Trade and Investment Programme,UK Trade and Investment Programme,11-Apr-2011 ,Event Management - Trade Marketing Events,UK Trade & Investment - Regional Directorate,CAMBRIDGESHIRE CHAMBER OF COMMERCE,145520,450.00
UK Trade and Investment Programme,UK Trade and Investment Programme,11-Apr-2011 ,Event Management - Trade Marketing Events,UK Trade & Investment - Regional Directorate,SHEFFIELD CHAMBER OF COMMERCE & INDUSTRY,145968,4338.00
UK Trade and Investment Programme,UK Trade and Investment Programme,11-Apr-2011 ,Printing Costs - Trade Marketing Events,UK Trade & Investment - Regional Directorate,STRATEGYCOMM LTD,145956,2597.50
UK Trade and Investment Programme,UK Trade and Investment Programme,11-Apr-2011 ,Promotional Materials - Trade Marketing Events,UK Trade & Investment - Regional Directorate,Y & H IDB LTD T/A BUSINESS LINK YORKSHIRE,145980,1250.71
UK Trade and Investment Programme,UK Trade and Investment Programme,11-Apr-2011 ,Scheme Management Charges - Export Communications Review,UK Trade & Investment - Regional Directorate,THE BRITISH CHAMBERS OF COMMERCE,145983,350.00
UK Trade and Investment Programme,UK Trade and Investment Programme,11-Apr-2011 ,Scheme Management Charges - International Trade Team Contracting,UK Trade & Investment - Regional Directorate,Y & H IDB LTD T/A BUSINESS LINK YORKSHIRE,145980,410985.00
UK Trade and Investment Programme,UK Trade and Investment Programme,11-Apr-2011 ,Scheme Management Charges - International Trade Team Contracting,UK Trade & Investment - Regional Directorate,Y & H IDB LTD T/A BUSINESS LINK YORKSHIRE,145980,8627.72
UK Trade and Investment Programme,UK Trade and Investment Programme,11-Apr-2011 ,Scheme Management Charges - International Trade Team Contracting,UK Trade & Investment - Regional Directorate,Y & H IDB LTD T/A BUSINESS LINK YORKSHIRE,145980,210050.45
UK Trade and Investment Programme,UK Trade and Investment Programme,11-Apr-2011 ,Scheme Management Charges - International Trade Team Contracting,UK Trade & Investment - Regional Directorate,Y & H IDB LTD T/A BUSINESS LINK YORKSHIRE,145980,368.99
UK Trade and Investment Programme,UK Trade and Investment Programme,11-Apr-2011 ,Scheme Management Charges - Inward Investment Research,UK Trade & Investment - Business Group,PA CONSULTING GROUP LTD,145965,49133.72
UK Trade and Investment Programme,UK Trade and Investment Programme,11-Apr-2011 ,Scheme Management Charges - Inward Investment Research,UK Trade & Investment - Business Group,PA CONSULTING GROUP LTD,145965,13150.38
UK Trade and Investment Programme,UK Trade and Investment Programme,11-Apr-2011 ,Sponsors Grants - Trade Show Access Programme,UK Trade & Investment - Sectors Group,ADS GROUP LTD,145963,7200.00
UK Trade and Investment Programme,UK Trade and Investment Programme,11-Apr-2011 ,Sponsors Grants - Trade Show Access Programme,UK Trade & Investment - Sectors Group,CONSTRUCTION EQUIPMENT ASSOCIATION,145978,3840.00
UK Trade and Investment Programme,UK Trade and Investment Programme,11-Apr-2011 ,Stand Construction Costs - Trade Marketing Events,UK Trade & Investment - Marketing  & Communications Group,CLEARVIEW IMAGING SERVICES LTD,145970,2285.00
UK Trade and Investment Programme,UK Trade and Investment Programme,11-Apr-2011 ,Stand Construction Costs - Trade Marketing Events,UK Trade & Investment - Marketing  & Communications Group,CLEARVIEW IMAGING SERVICES LTD,145970,390.00
UK Trade and Investment Programme,UK Trade and Investment Programme,11-Apr-2011 ,Training - General - Passport Development & Events,UK Trade & Investment - Regional Directorate,GLE INVESTMENTS LTD,145976,1300.00
UK Trade and Investment Programme,UK Trade and Investment Programme,11-Apr-2011 ,Training - General - Passport Development & Events,UK Trade & Investment - Regional Directorate,Y & H IDB LTD T/A BUSINESS LINK YORKSHIRE,145980,12374.25
UK Trade and Investment Programme,UK Trade and Investment Programme,11-Apr-2011 ,Travel and Subsistence O'seas - Market Visit Scheme,UK Trade & Investment - Regional Directorate,BRILLE RECORDS LTD,145955,500.00
UK Trade and Investment Programme,UK Trade and Investment Programme,11-Apr-2011 ,Travel and Subsistence O'seas - Market Visit Scheme,UK Trade & Investment - Regional Directorate,CAROLINE K OLDHAM T/A ROSEANNA CHILDCARE & EDUCATION CONSULTANCY,145954,750.00
UK Trade and Investment Programme,UK Trade and Investment Programme,11-Apr-2011 ,Travel and Subsistence O'seas - Market Visit Scheme,UK Trade & Investment - Regional Directorate,FOX LAWYERS,145982,500.00
UK Trade and Investment Programme,UK Trade and Investment Programme,11-Apr-2011 ,Travel and Subsistence O'seas - Market Visit Scheme,UK Trade & Investment - Regional Directorate,OMAR KASHOURA,145987,250.00
UK Trade and Investment Programme,UK Trade and Investment Programme,11-Apr-2011 ,Travel and Subsistence O'seas - NINJ Sector Events Abroad,UK Trade & Investment - Sectors Group,"Personal Expense, Name Witheld.",505161,52.00
UK Trade and Investment Programme,UK Trade and Investment Programme,11-Apr-2011 ,Travel and Subsistence O'seas - NINJ Sector Events Abroad,UK Trade & Investment - Sectors Group,"Personal Expense, Name Witheld.",505161,75.48
UK Trade and Investment Programme,UK Trade and Investment Programme,11-Apr-2011 ,Travel and Subsistence O'seas - NINJ Sector Events Abroad,UK Trade & Investment - Sectors Group,"Personal Expense, Name Witheld.",505161,45.59
UK Trade and Investment Programme,UK Trade and Investment Programme,11-Apr-2011 ,Travel and Subsistence O'seas - NINJ Sector Events Abroad,UK Trade & Investment - Sectors Group,"Personal Expense, Name Witheld.",505161,75.71
UK Trade and Investment Programme,UK Trade and Investment Programme,11-Apr-2011 ,Travel and Subsistence O'seas - Regional Interchange Scheme,UK Trade & Investment - Regional Directorate,GREATER LONDON ENTERPRISE LTD,145969,1162.00
UK Trade and Investment Programme,UK Trade and Investment Programme,11-Apr-2011 ,Travel and Subsistence O'seas - Regional Interchange Scheme,UK Trade & Investment - Regional Directorate,GREATER LONDON ENTERPRISE LTD,145969,0.98
UK Trade and Investment Programme,UK Trade and Investment Programme,11-Apr-2011 ,Travel and Subsistence O'seas - Trade Marketing Events,UK Trade & Investment - Regional Directorate,ELEMENTS EXECUTIVE SEARCH LTD,145964,1000.00
UK Trade and Investment Programme,UK Trade and Investment Programme,11-Apr-2011 ,Travel and Subsistence O'seas - Trade Marketing Events,UK Trade & Investment - Regional Directorate,NOVOTEL MUMBAI JUHU BEACH,145405,682.86
UK Trade and Investment Programme,UK Trade and Investment Programme,11-Apr-2011 ,Travel and Subsistence O'seas - Trade Marketing Events,UK Trade & Investment - Regional Directorate,NOVOTEL MUMBAI JUHU BEACH,145406,682.86
UK Trade and Investment Programme,UK Trade and Investment Programme,11-Apr-2011 ,Travel and Subsistence O'seas - Trade Marketing Events,UK Trade & Investment - Regional Directorate,NOVOTEL MUMBAI JUHU BEACH,145411,682.86
UK Trade and Investment Programme,UK Trade and Investment Programme,11-Apr-2011 ,Travel and Subsistence O'seas - Trade Marketing Events,UK Trade & Investment - Regional Directorate,NOVOTEL MUMBAI JUHU BEACH,145413,682.86
UK Trade and Investment Programme,UK Trade and Investment Programme,11-Apr-2011 ,Travel and Subsistence O'seas - Trade Marketing Events,UK Trade & Investment - Regional Directorate,NOVOTEL MUMBAI JUHU BEACH,145414,682.86
UK Trade and Investment Programme,UK Trade and Investment Programme,11-Apr-2011 ,Travel and Subsistence O'seas - Trade Marketing Events,UK Trade & Investment - Regional Directorate,NOVOTEL MUMBAI JUHU BEACH,145417,682.86
UK Trade and Investment Programme,UK Trade and Investment Programme,11-Apr-2011 ,Travel and Subsistence O'seas - Trade Marketing Events,UK Trade & Investment - Regional Directorate,NOVOTEL MUMBAI JUHU BEACH,145418,682.86
UK Trade and Investment Programme,UK Trade and Investment Programme,11-Apr-2011 ,Travel and Subsistence O'seas - Trade Marketing Events,UK Trade & Investment - Regional Directorate,NOVOTEL MUMBAI JUHU BEACH,145441,682.86
UK Trade and Investment Programme,UK Trade and Investment Programme,11-Apr-2011 ,Travel and Subsistence O'seas - Trade Marketing Events,UK Trade & Investment - Regional Directorate,NOVOTEL MUMBAI JUHU BEACH,145647,682.86
UK Trade and Investment Programme,UK Trade and Investment Programme,11-Apr-2011 ,Travel and Subsistence UK - Sector Events - UK,UK Trade & Investment - Sectors Group,IAN HAUGH & DIANE GILPIN T/A BEYONDTHINKING,145372,69.50
UK Trade and Investment Programme,UK Trade and Investment Programme,11-Apr-2011 ,Venue Hire - Trade Marketing Events,UK Trade & Investment - Regional Directorate,FRESH ELEMENT LTD,145577,47.40
UK Trade and Investment Programme,UK Trade and Investment Programme,12-Apr-2011 ,Authoring and Copywriting Costs - Trade Marketing Events,UK Trade & Investment - Regional Directorate,SOUTH EAST TRADE & INVESTMENT LTD,146005,3484.00
UK Trade and Investment Programme,UK Trade and Investment Programme,12-Apr-2011 ,Basic Grants - SESA Solo Support Scheme,UK Trade & Investment - Sectors Group,LEO CADOGAN RARE BOOKS LTD,146008,1000.00
UK Trade and Investment Programme,UK Trade and Investment Programme,12-Apr-2011 ,Basic Grants - SESA Solo Support Scheme,UK Trade & Investment - Sectors Group,NICK DAVIS T/A THE FOUNDRY,146009,1000.00
UK Trade and Investment Programme,UK Trade and Investment Programme,12-Apr-2011 ,Development Cost - Website (AUC) - Clearing Account - Balance Sheet,UK Trade & Investment - IT and Finance Group,ADECCO UK LTD,146031,951.95
UK Trade and Investment Programme,UK Trade and Investment Programme,12-Apr-2011 ,Event Management - Government 2 Government,UK Trade & Investment - Sectors Group,ANGLO-CHINESE TRANSLATIONS LTD,145997,830.00
UK Trade and Investment Programme,UK Trade and Investment Programme,12-Apr-2011 ,Event Management - Trade Marketing Events,UK Trade & Investment - Regional Directorate,LONDON CHAMBER OF COMMERCE & INDUSTRY,145986,11603.25
UK Trade and Investment Programme,UK Trade and Investment Programme,12-Apr-2011 ,Event Management - Trade Marketing Events,UK Trade & Investment - Regional Directorate,SOUTH EAST TRADE & INVESTMENT LTD,146005,1000.00
UK Trade and Investment Programme,UK Trade and Investment Programme,12-Apr-2011 ,Event Management - Trade Marketing Events,UK Trade & Investment - Regional Directorate,SOUTH EAST TRADE & INVESTMENT LTD,146005,1000.00
UK Trade and Investment Programme,UK Trade and Investment Programme,12-Apr-2011 ,Event Management - Trade Marketing Events,UK Trade & Investment - Regional Directorate,SOUTH EAST TRADE & INVESTMENT LTD,146005,10000.00
UK Trade and Investment Programme,UK Trade and Investment Programme,12-Apr-2011 ,Event Management - Trade Marketing Events,UK Trade & Investment - Regional Directorate,SOUTH EAST TRADE & INVESTMENT LTD,146005,5000.00
UK Trade and Investment Programme,UK Trade and Investment Programme,12-Apr-2011 ,Event Management - Trade Marketing Events,UK Trade & Investment - Regional Directorate,SOUTH EAST TRADE & INVESTMENT LTD,146005,9747.45
UK Trade and Investment Programme,UK Trade and Investment Programme,12-Apr-2011 ,Event Management - Trade Marketing Events,UK Trade & Investment - Regional Directorate,SOUTH EAST TRADE & INVESTMENT LTD,146005,4000.00
UK Trade and Investment Programme,UK Trade and Investment Programme,12-Apr-2011 ,Event Management - Trade Marketing Events,UK Trade & Investment - Regional Directorate,SOUTH EAST TRADE & INVESTMENT LTD,146005,5000.00
UK Trade and Investment Programme,UK Trade and Investment Programme,12-Apr-2011 ,Event Management - Trade Marketing Events,UK Trade & Investment - Regional Directorate,SOUTH EAST TRADE & INVESTMENT LTD,146005,10000.00
UK Trade and Investment Programme,UK Trade and Investment Programme,12-Apr-2011 ,Event Management - Trade Marketing Events,UK Trade & Investment - Regional Directorate,SOUTH EAST TRADE & INVESTMENT LTD,146005,5000.00
UK Trade and Investment Programme,UK Trade and Investment Programme,12-Apr-2011 ,Event Management - Trade Marketing Events,UK Trade & Investment - Regional Directorate,SOUTH EAST TRADE & INVESTMENT LTD,146005,4145.90
UK Trade and Investment Programme,UK Trade and Investment Programme,12-Apr-2011 ,Event Management - Trade Marketing Events,UK Trade & Investment - Regional Directorate,SOUTH EAST TRADE & INVESTMENT LTD,146005,8000.00
UK Trade and Investment Programme,UK Trade and Investment Programme,12-Apr-2011 ,IT software and licences - Passport Development & Events,UK Trade & Investment - Regional Directorate,SOUTH EAST TRADE & INVESTMENT LTD,146003,7500.00
UK Trade and Investment Programme,UK Trade and Investment Programme,12-Apr-2011 ,Online Services charges - Trade Marketing Events,UK Trade & Investment - Marketing  & Communications Group,CLEARVIEW IMAGING SERVICES LTD,146011,500.00
UK Trade and Investment Programme,UK Trade and Investment Programme,12-Apr-2011 ,Other Accomodation costs - ,UK Trade & Investment - Strategy and Human Resources Group,"Personal Expense, Name Witheld.",146006,221.38
UK Trade and Investment Programme,UK Trade and Investment Programme,12-Apr-2011 ,Other Accomodation costs - ,UK Trade & Investment - Strategy and Human Resources Group,"Personal Expense, Name Witheld.",146006,1000.00
UK Trade and Investment Programme,UK Trade and Investment Programme,12-Apr-2011 ,Other Transportation Hire - Sector Events - UK,UK Trade & Investment - Sectors Group,BIRMINGHAM INTERNATIONAL COACHES LTD,146010,300.00
UK Trade and Investment Programme,UK Trade and Investment Programme,12-Apr-2011 ,Photographic Services - Trade Marketing Events,UK Trade & Investment - Regional Directorate,PICTURE FARM,145994,240.00
UK Trade and Investment Programme,UK Trade and Investment Programme,12-Apr-2011 ,Postage costs - Trade Marketing Events,UK Trade & Investment - Regional Directorate,THE NATIONAL EXHIBITION CENTRE,146000,16.87
UK Trade and Investment Programme,UK Trade and Investment Programme,12-Apr-2011 ,Printed Publications - Trade Marketing Events,UK Trade & Investment - Regional Directorate,SOUTH EAST TRADE & INVESTMENT LTD,146005,9400.00
UK Trade and Investment Programme,UK Trade and Investment Programme,12-Apr-2011 ,Printing Costs - Sector Champion,UK Trade & Investment - Business Group,LYRECO UK LTD,145958,27.99
UK Trade and Investment Programme,UK Trade and Investment Programme,12-Apr-2011 ,Promotional Materials - Trade Marketing Events,UK Trade & Investment - Regional Directorate,SOUTH EAST TRADE & INVESTMENT LTD,146005,4887.30
UK Trade and Investment Programme,UK Trade and Investment Programme,12-Apr-2011 ,Scheme Management Charges - Attracting Global Entrepreneurs,UK Trade & Investment - Business Group,PERA INNOVATION LTD,145995,113611.92
UK Trade and Investment Programme,UK Trade and Investment Programme,12-Apr-2011 ,Scheme Management Charges - Attracting Global Entrepreneurs,UK Trade & Investment - Business Group,PERA INNOVATION LTD,145995,3.60
UK Trade and Investment Programme,UK Trade and Investment Programme,12-Apr-2011 ,Scheme Management Charges - Attracting Global Entrepreneurs,UK Trade & Investment - Business Group,PERA INNOVATION LTD,145996,7207.93
UK Trade and Investment Programme,UK Trade and Investment Programme,12-Apr-2011 ,Scheme Management Charges - International Trade Team Contracting,UK Trade & Investment - Regional Directorate,ADVANTAGE WEST MIDLANDS,145990,36560.48
UK Trade and Investment Programme,UK Trade and Investment Programme,12-Apr-2011 ,Scheme Management Charges - Passport Business Development Credits,UK Trade & Investment - Regional Directorate,AMEY COMMUNITY LTD,146025,2815.54
UK Trade and Investment Programme,UK Trade and Investment Programme,12-Apr-2011 ,Scheme Management Charges - Passport Business Development Credits,UK Trade & Investment - Regional Directorate,AMPLICON LIVELINE LTD,145849,167.52
UK Trade and Investment Programme,UK Trade and Investment Programme,12-Apr-2011 ,Scheme Management Charges - Passport Business Development Credits,UK Trade & Investment - Regional Directorate,AMPLICON LIVELINE LTD,145849,937.36
UK Trade and Investment Programme,UK Trade and Investment Programme,12-Apr-2011 ,Scheme Management Charges - Passport Business Development Credits,UK Trade & Investment - Regional Directorate,ANDREA BILLARD LINGERIE,145841,492.58
UK Trade and Investment Programme,UK Trade and Investment Programme,12-Apr-2011 ,Scheme Management Charges - Passport Business Development Credits,UK Trade & Investment - Regional Directorate,CARRIGBOY,145854,1500.00
UK Trade and Investment Programme,UK Trade and Investment Programme,12-Apr-2011 ,Scheme Management Charges - Passport Business Development Credits,UK Trade & Investment - Regional Directorate,DERBY BREWING COMPANY LTD,145487,877.50
UK Trade and Investment Programme,UK Trade and Investment Programme,12-Apr-2011 ,Scheme Management Charges - Passport Business Development Credits,UK Trade & Investment - Regional Directorate,ENVIROTECT LTD,145488,1425.74
UK Trade and Investment Programme,UK Trade and Investment Programme,12-Apr-2011 ,Scheme Management Charges - Passport Business Development Credits,UK Trade & Investment - Regional Directorate,FUEL-FLIPPER LTD T/A FUELSURE,145549,1417.50
UK Trade and Investment Programme,UK Trade and Investment Programme,12-Apr-2011 ,Scheme Management Charges - Passport Business Development Credits,UK Trade & Investment - Regional Directorate,G DESSERTS,145556,500.00
UK Trade and Investment Programme,UK Trade and Investment Programme,12-Apr-2011 ,Scheme Management Charges - Passport Business Development Credits,UK Trade & Investment - Regional Directorate,G DESSERTS,145556,46.06
UK Trade and Investment Programme,UK Trade and Investment Programme,12-Apr-2011 ,Scheme Management Charges - Passport Business Development Credits,UK Trade & Investment - Regional Directorate,MATRIX PARTNERSHIP LTD,145555,520.88
UK Trade and Investment Programme,UK Trade and Investment Programme,12-Apr-2011 ,Scheme Management Charges - Passport Business Development Credits,UK Trade & Investment - Regional Directorate,NICA LONDON LTD,145486,151.99
UK Trade and Investment Programme,UK Trade and Investment Programme,12-Apr-2011 ,Scheme Management Charges - Passport Business Development Credits,UK Trade & Investment - Regional Directorate,SEAGLAZE MARINE WINDOWS LTD,145553,1002.00
UK Trade and Investment Programme,UK Trade and Investment Programme,12-Apr-2011 ,Scheme Management Charges - Passport Business Development Credits,UK Trade & Investment - Regional Directorate,SEAGLAZE MARINE WINDOWS LTD,145553,235.50
UK Trade and Investment Programme,UK Trade and Investment Programme,12-Apr-2011 ,Scheme Management Charges - Passport Business Development Credits,UK Trade & Investment - Regional Directorate,SEETRU LTD,145857,1500.00
UK Trade and Investment Programme,UK Trade and Investment Programme,12-Apr-2011 ,Scheme Management Charges - Passport Business Development Credits,UK Trade & Investment - Regional Directorate,SERVACLEAN LTD,145551,1500.00
UK Trade and Investment Programme,UK Trade and Investment Programme,12-Apr-2011 ,Scheme Management Charges - Passport Business Development Credits,UK Trade & Investment - Regional Directorate,SOVIBRANT LTD,145839,1500.00
UK Trade and Investment Programme,UK Trade and Investment Programme,12-Apr-2011 ,Scheme Management Charges - Passport Business Development Credits,UK Trade & Investment - Regional Directorate,SPRITE MANUFACTURING LTD,145844,211.47
UK Trade and Investment Programme,UK Trade and Investment Programme,12-Apr-2011 ,Scheme Management Charges - Passport Business Development Credits,UK Trade & Investment - Regional Directorate,TEXANE LTD,145846,1421.33
UK Trade and Investment Programme,UK Trade and Investment Programme,12-Apr-2011 ,Scheme Management Charges - Trade Development External Advisers,UK Trade & Investment - Sectors Group,PA CONSULTING GROUP LTD,146033,54000.00
UK Trade and Investment Programme,UK Trade and Investment Programme,12-Apr-2011 ,Scheme Management Charges - Trade Development External Advisers,UK Trade & Investment - Sectors Group,PA CONSULTING GROUP LTD,146034,8226.46
UK Trade and Investment Programme,UK Trade and Investment Programme,12-Apr-2011 ,Scheme Management Charges - Trade Development External Advisers,UK Trade & Investment - Sectors Group,PA CONSULTING GROUP LTD,146036,53479.69
UK Trade and Investment Programme,UK Trade and Investment Programme,12-Apr-2011 ,Sponsors Grants - UKIBC UK India Business Council,UK Trade & Investment - International Group,UK INDIA BUSINESS COUNCIL,146020,83333.33
UK Trade and Investment Programme,UK Trade and Investment Programme,12-Apr-2011 ,Stand Construction Costs - Trade Marketing Events,UK Trade & Investment - Marketing  & Communications Group,CLEARVIEW IMAGING SERVICES LTD,146012,1595.00
UK Trade and Investment Programme,UK Trade and Investment Programme,12-Apr-2011 ,Telecommunications - Trade Marketing Events,UK Trade & Investment - Regional Directorate,THE NATIONAL EXHIBITION CENTRE,146001,225.28
UK Trade and Investment Programme,UK Trade and Investment Programme,12-Apr-2011 ,Telemarketing - Trade Marketing Events,UK Trade & Investment - Regional Directorate,SOUTH EAST TRADE & INVESTMENT LTD,146005,20973.35
UK Trade and Investment Programme,UK Trade and Investment Programme,12-Apr-2011 ,Training - General - Passport Development & Events,UK Trade & Investment - Regional Directorate,SOUTH EAST TRADE & INVESTMENT LTD,146003,2660.00
UK Trade and Investment Programme,UK Trade and Investment Programme,12-Apr-2011 ,Training - General - Passport Development & Events,UK Trade & Investment - Regional Directorate,SOUTH EAST TRADE & INVESTMENT LTD,146003,2500.00
UK Trade and Investment Programme,UK Trade and Investment Programme,12-Apr-2011 ,Training - General - Passport Development & Events,UK Trade & Investment - Regional Directorate,SOUTH EAST TRADE & INVESTMENT LTD,146003,1650.00
UK Trade and Investment Programme,UK Trade and Investment Programme,12-Apr-2011 ,Training - General - Passport Development & Events,UK Trade & Investment - Regional Directorate,SOUTH EAST TRADE & INVESTMENT LTD,146003,4800.00
UK Trade and Investment Programme,UK Trade and Investment Programme,12-Apr-2011 ,Training - General - Passport Development & Events,UK Trade & Investment - Regional Directorate,SOUTH EAST TRADE & INVESTMENT LTD,146003,2391.75
UK Trade and Investment Programme,UK Trade and Investment Programme,12-Apr-2011 ,Training - General - Passport Development & Events,UK Trade & Investment - Regional Directorate,SOUTH EAST TRADE & INVESTMENT LTD,146003,13311.25
UK Trade and Investment Programme,UK Trade and Investment Programme,12-Apr-2011 ,Travel and Subsistence O'seas - Market Visit Scheme,UK Trade & Investment - Regional Directorate,HARRY WEST (PREES) LTD,145992,200.00
UK Trade and Investment Programme,UK Trade and Investment Programme,12-Apr-2011 ,Travel and Subsistence O'seas - Market Visit Scheme,UK Trade & Investment - Regional Directorate,HEREFORDSHIRE & WORCESTERSHIRE CHAMBER OF COMMERCE,145991,1000.00
UK Trade and Investment Programme,UK Trade and Investment Programme,12-Apr-2011 ,Travel and Subsistence O'seas - Market Visit Scheme,UK Trade & Investment - Regional Directorate,NORTH STAFFORDSHIRE CHAMBER OF COMMERCE AND INDUSTRY,145989,200.00
UK Trade and Investment Programme,UK Trade and Investment Programme,12-Apr-2011 ,Travel and Subsistence O'seas - Market Visit Scheme,UK Trade & Investment - Regional Directorate,RJT CONVEYORS (INTERNATIONAL) LTD,145993,550.00
UK Trade and Investment Programme,UK Trade and Investment Programme,12-Apr-2011 ,Travel and Subsistence O'seas - Market Visit Scheme,UK Trade & Investment - Regional Directorate,SOUTH EAST TRADE & INVESTMENT LTD,146007,565.00
UK Trade and Investment Programme,UK Trade and Investment Programme,12-Apr-2011 ,Travel and Subsistence O'seas - Market Visit Scheme,UK Trade & Investment - Regional Directorate,SOUTH EAST TRADE & INVESTMENT LTD,146007,790.00
UK Trade and Investment Programme,UK Trade and Investment Programme,12-Apr-2011 ,Travel and Subsistence O'seas - Market Visit Scheme,UK Trade & Investment - Regional Directorate,SOUTH EAST TRADE & INVESTMENT LTD,146007,2370.00
UK Trade and Investment Programme,UK Trade and Investment Programme,12-Apr-2011 ,Travel and Subsistence O'seas - Market Visit Scheme,UK Trade & Investment - Regional Directorate,SOUTH EAST TRADE & INVESTMENT LTD,146007,1910.00
UK Trade and Investment Programme,UK Trade and Investment Programme,12-Apr-2011 ,Travel and Subsistence O'seas - Market Visit Scheme,UK Trade & Investment - Regional Directorate,SOUTH EAST TRADE & INVESTMENT LTD,146007,205.00
UK Trade and Investment Programme,UK Trade and Investment Programme,12-Apr-2011 ,Travel and Subsistence O'seas - Market Visit Scheme,UK Trade & Investment - Regional Directorate,SOUTH EAST TRADE & INVESTMENT LTD,146007,8860.00
UK Trade and Investment Programme,UK Trade and Investment Programme,12-Apr-2011 ,Travel and Subsistence O'seas - Market Visit Scheme,UK Trade & Investment - Regional Directorate,SOUTH EAST TRADE & INVESTMENT LTD,146007,430.00
UK Trade and Investment Programme,UK Trade and Investment Programme,12-Apr-2011 ,Travel and Subsistence O'seas - Market Visit Scheme,UK Trade & Investment - Regional Directorate,SOUTH EAST TRADE & INVESTMENT LTD,146007,2835.00
UK Trade and Investment Programme,UK Trade and Investment Programme,12-Apr-2011 ,Travel and Subsistence O'seas - Market Visit Scheme,UK Trade & Investment - Regional Directorate,SOUTH EAST TRADE & INVESTMENT LTD,146007,230.00
UK Trade and Investment Programme,UK Trade and Investment Programme,12-Apr-2011 ,Travel and Subsistence O'seas - Market Visit Scheme,UK Trade & Investment - Regional Directorate,SOUTH EAST TRADE & INVESTMENT LTD,146007,230.00
UK Trade and Investment Programme,UK Trade and Investment Programme,12-Apr-2011 ,Travel and Subsistence O'seas - Market Visit Scheme,UK Trade & Investment - Regional Directorate,SOUTH EAST TRADE & INVESTMENT LTD,146007,2250.00
UK Trade and Investment Programme,UK Trade and Investment Programme,12-Apr-2011 ,Travel and Subsistence O'seas - Market Visit Scheme,UK Trade & Investment - Regional Directorate,SOUTH EAST TRADE & INVESTMENT LTD,146007,60.00
UK Trade and Investment Programme,UK Trade and Investment Programme,12-Apr-2011 ,Travel and Subsistence O'seas - Market Visit Scheme,UK Trade & Investment - Regional Directorate,SOUTH EAST TRADE & INVESTMENT LTD,146007,165.00
UK Trade and Investment Programme,UK Trade and Investment Programme,12-Apr-2011 ,Travel and Subsistence O'seas - Market Visit Scheme,UK Trade & Investment - Regional Directorate,SOUTH EAST TRADE & INVESTMENT LTD,146007,400.00
UK Trade and Investment Programme,UK Trade and Investment Programme,12-Apr-2011 ,Travel and Subsistence O'seas - Market Visit Scheme,UK Trade & Investment - Regional Directorate,SOUTH EAST TRADE & INVESTMENT LTD,146007,200.00
UK Trade and Investment Programme,UK Trade and Investment Programme,12-Apr-2011 ,Travel and Subsistence O'seas - Market Visit Scheme,UK Trade & Investment - Regional Directorate,SOUTH EAST TRADE & INVESTMENT LTD,146007,200.00
UK Trade and Investment Programme,UK Trade and Investment Programme,12-Apr-2011 ,Travel and Subsistence O'seas - Market Visit Scheme,UK Trade & Investment - Regional Directorate,SOUTH EAST TRADE & INVESTMENT LTD,146007,250.00
UK Trade and Investment Programme,UK Trade and Investment Programme,12-Apr-2011 ,Travel and Subsistence O'seas - Market Visit Scheme,UK Trade & Investment - Regional Directorate,SOUTH EAST TRADE & INVESTMENT LTD,146007,665.00
UK Trade and Investment Programme,UK Trade and Investment Programme,12-Apr-2011 ,Travel and Subsistence O'seas - Market Visit Scheme,UK Trade & Investment - Regional Directorate,SOUTH EAST TRADE & INVESTMENT LTD,146007,550.00
UK Trade and Investment Programme,UK Trade and Investment Programme,12-Apr-2011 ,Travel and Subsistence O'seas - Market Visit Scheme,UK Trade & Investment - Regional Directorate,SOUTH EAST TRADE & INVESTMENT LTD,146007,200.00
UK Trade and Investment Programme,UK Trade and Investment Programme,12-Apr-2011 ,Travel and Subsistence O'seas - Market Visit Scheme,UK Trade & Investment - Regional Directorate,SOUTH EAST TRADE & INVESTMENT LTD,146007,140.00
UK Trade and Investment Programme,UK Trade and Investment Programme,12-Apr-2011 ,Travel and Subsistence O'seas - Market Visit Scheme,UK Trade & Investment - Regional Directorate,SOUTH EAST TRADE & INVESTMENT LTD,146007,1480.00
UK Trade and Investment Programme,UK Trade and Investment Programme,12-Apr-2011 ,Travel and Subsistence O'seas - Market Visit Scheme,UK Trade & Investment - Regional Directorate,SOUTH EAST TRADE & INVESTMENT LTD,146007,550.00
UK Trade and Investment Programme,UK Trade and Investment Programme,12-Apr-2011 ,Travel and Subsistence O'seas - Market Visit Scheme,UK Trade & Investment - Regional Directorate,SOUTH EAST TRADE & INVESTMENT LTD,146007,200.00
UK Trade and Investment Programme,UK Trade and Investment Programme,12-Apr-2011 ,Travel and Subsistence O'seas - Market Visit Scheme,UK Trade & Investment - Regional Directorate,SOUTH EAST TRADE & INVESTMENT LTD,146007,470.00
UK Trade and Investment Programme,UK Trade and Investment Programme,12-Apr-2011 ,Travel and Subsistence O'seas - Market Visit Scheme,UK Trade & Investment - Regional Directorate,SOUTH EAST TRADE & INVESTMENT LTD,146007,775.00
UK Trade and Investment Programme,UK Trade and Investment Programme,12-Apr-2011 ,Travel and Subsistence O'seas - Market Visit Scheme,UK Trade & Investment - Regional Directorate,SOUTH EAST TRADE & INVESTMENT LTD,146007,515.00
UK Trade and Investment Programme,UK Trade and Investment Programme,12-Apr-2011 ,Travel and Subsistence O'seas - Market Visit Scheme,UK Trade & Investment - Regional Directorate,SOUTH EAST TRADE & INVESTMENT LTD,146007,635.00
UK Trade and Investment Programme,UK Trade and Investment Programme,12-Apr-2011 ,Travel and Subsistence O'seas - Market Visit Scheme,UK Trade & Investment - Regional Directorate,SOUTH EAST TRADE & INVESTMENT LTD,146007,180.00
UK Trade and Investment Programme,UK Trade and Investment Programme,12-Apr-2011 ,Travel and Subsistence O'seas - Market Visit Scheme,UK Trade & Investment - Regional Directorate,SOUTH EAST TRADE & INVESTMENT LTD,146007,260.00
UK Trade and Investment Programme,UK Trade and Investment Programme,12-Apr-2011 ,Travel and Subsistence O'seas - Market Visit Scheme,UK Trade & Investment - Regional Directorate,SOUTH EAST TRADE & INVESTMENT LTD,146007,2250.00
UK Trade and Investment Programme,UK Trade and Investment Programme,12-Apr-2011 ,Travel and Subsistence O'seas - Market Visit Scheme,UK Trade & Investment - Regional Directorate,SOUTH EAST TRADE & INVESTMENT LTD,146007,200.00
UK Trade and Investment Programme,UK Trade and Investment Programme,12-Apr-2011 ,Travel and Subsistence O'seas - Market Visit Scheme,UK Trade & Investment - Regional Directorate,SOUTH EAST TRADE & INVESTMENT LTD,146007,750.00
UK Trade and Investment Programme,UK Trade and Investment Programme,12-Apr-2011 ,Travel and Subsistence O'seas - Market Visit Scheme,UK Trade & Investment - Regional Directorate,SOUTH EAST TRADE & INVESTMENT LTD,146007,550.00
UK Trade and Investment Programme,UK Trade and Investment Programme,12-Apr-2011 ,Travel and Subsistence O'seas - Market Visit Scheme,UK Trade & Investment - Regional Directorate,SOUTH EAST TRADE & INVESTMENT LTD,146007,200.00
UK Trade and Investment Programme,UK Trade and Investment Programme,12-Apr-2011 ,Travel and Subsistence O'seas - Market Visit Scheme,UK Trade & Investment - Regional Directorate,SOUTH EAST TRADE & INVESTMENT LTD,146007,400.00
UK Trade and Investment Programme,UK Trade and Investment Programme,12-Apr-2011 ,Travel and Subsistence O'seas - Market Visit Scheme,UK Trade & Investment - Regional Directorate,SOUTH EAST TRADE & INVESTMENT LTD,146007,150.00
UK Trade and Investment Programme,UK Trade and Investment Programme,12-Apr-2011 ,Travel and Subsistence O'seas - Market Visit Scheme,UK Trade & Investment - Regional Directorate,SOUTH EAST TRADE & INVESTMENT LTD,146007,775.00
UK Trade and Investment Programme,UK Trade and Investment Programme,12-Apr-2011 ,Travel and Subsistence O'seas - Market Visit Scheme,UK Trade & Investment - Regional Directorate,SOUTH EAST TRADE & INVESTMENT LTD,146007,3480.00
UK Trade and Investment Programme,UK Trade and Investment Programme,12-Apr-2011 ,Travel and Subsistence O'seas - Market Visit Scheme,UK Trade & Investment - Regional Directorate,SOUTH EAST TRADE & INVESTMENT LTD,146007,2665.00
UK Trade and Investment Programme,UK Trade and Investment Programme,12-Apr-2011 ,Travel and Subsistence O'seas - Market Visit Scheme,UK Trade & Investment - Regional Directorate,SOUTH EAST TRADE & INVESTMENT LTD,146007,60.00
UK Trade and Investment Programme,UK Trade and Investment Programme,12-Apr-2011 ,Travel and Subsistence O'seas - Market Visit Scheme,UK Trade & Investment - Regional Directorate,SOUTH EAST TRADE & INVESTMENT LTD,146007,1175.00
UK Trade and Investment Programme,UK Trade and Investment Programme,12-Apr-2011 ,Travel and Subsistence O'seas - Market Visit Scheme,UK Trade & Investment - Regional Directorate,SOUTH EAST TRADE & INVESTMENT LTD,146007,2200.00
UK Trade and Investment Programme,UK Trade and Investment Programme,12-Apr-2011 ,Travel and Subsistence O'seas - Market Visit Scheme,UK Trade & Investment - Regional Directorate,SOUTH EAST TRADE & INVESTMENT LTD,146007,3200.00
UK Trade and Investment Programme,UK Trade and Investment Programme,12-Apr-2011 ,Travel and Subsistence O'seas - Market Visit Scheme,UK Trade & Investment - Regional Directorate,SOUTH EAST TRADE & INVESTMENT LTD,146007,7630.00
UK Trade and Investment Programme,UK Trade and Investment Programme,12-Apr-2011 ,Travel and Subsistence O'seas - Market Visit Scheme,UK Trade & Investment - Regional Directorate,SOUTH EAST TRADE & INVESTMENT LTD,146007,450.00
UK Trade and Investment Programme,UK Trade and Investment Programme,12-Apr-2011 ,Travel and Subsistence O'seas - Market Visit Scheme,UK Trade & Investment - Regional Directorate,SOUTH EAST TRADE & INVESTMENT LTD,146007,950.00
UK Trade and Investment Programme,UK Trade and Investment Programme,12-Apr-2011 ,Travel and Subsistence O'seas - Market Visit Scheme,UK Trade & Investment - Regional Directorate,SOUTH EAST TRADE & INVESTMENT LTD,146007,1460.00
UK Trade and Investment Programme,UK Trade and Investment Programme,12-Apr-2011 ,Travel and Subsistence O'seas - Market Visit Scheme,UK Trade & Investment - Regional Directorate,SOUTH EAST TRADE & INVESTMENT LTD,146007,100.00
UK Trade and Investment Programme,UK Trade and Investment Programme,12-Apr-2011 ,Travel and Subsistence O'seas - Market Visit Scheme,UK Trade & Investment - Regional Directorate,SOUTH EAST TRADE & INVESTMENT LTD,146007,800.00
UK Trade and Investment Programme,UK Trade and Investment Programme,12-Apr-2011 ,Travel and Subsistence O'seas - Market Visit Scheme,UK Trade & Investment - Regional Directorate,SOUTH EAST TRADE & INVESTMENT LTD,146007,100.00
UK Trade and Investment Programme,UK Trade and Investment Programme,12-Apr-2011 ,Travel and Subsistence O'seas - Market Visit Scheme,UK Trade & Investment - Regional Directorate,SOUTH EAST TRADE & INVESTMENT LTD,146007,330.00
UK Trade and Investment Programme,UK Trade and Investment Programme,12-Apr-2011 ,Travel and Subsistence O'seas - Market Visit Scheme,UK Trade & Investment - Regional Directorate,SPERRY RAIL (INTERNATIONAL) LTD,145998,200.00
UK Trade and Investment Programme,UK Trade and Investment Programme,12-Apr-2011 ,Travel and Subsistence O'seas - Ministerial Events,UK Trade & Investment - International Group,HM TREASURY,146048,1872.17
UK Trade and Investment Programme,UK Trade and Investment Programme,12-Apr-2011 ,Travel and Subsistence O'seas - Trade Marketing Events,UK Trade & Investment - Regional Directorate,LUCKIES OF LONDON LTD,145988,500.00
UK Trade and Investment Programme,UK Trade and Investment Programme,12-Apr-2011 ,Travel and Subsistence UK - Asia Task Force,UK Trade & Investment - International Group,NOREC LTD,145535,143.50
UK Trade and Investment Programme,UK Trade and Investment Programme,13-Apr-2011 ,Authoring and Copywriting Costs - UKTI Corporate Marketing,UK Trade & Investment - Marketing  & Communications Group,THE COMMUNICATION GROUP PLC,146089,1500.00
UK Trade and Investment Programme,UK Trade and Investment Programme,13-Apr-2011 ,Bank Charges - Commercial Banks - Overseas Market Introduction Service,UK Trade & Investment - Regional Directorate,DTI OTSS COSTS A\C,146022,6383.78
UK Trade and Investment Programme,UK Trade and Investment Programme,13-Apr-2011 ,Bank Charges - Commercial Banks - Overseas Market Introduction Service,UK Trade & Investment - Regional Directorate,DTI OTSS COSTS A\C,146022,12.66
UK Trade and Investment Programme,UK Trade and Investment Programme,13-Apr-2011 ,Bank Charges - Commercial Banks - Overseas Market Introduction Service,UK Trade & Investment - Regional Directorate,DTI OTSS COSTS A\C,146024,20.34
UK Trade and Investment Programme,UK Trade and Investment Programme,13-Apr-2011 ,Basic Grants - SESA Solo Support Scheme,UK Trade & Investment - Sectors Group,AM BURNS & RN BURNS T/A CROFT ENGINEERING SERVICES,146055,1000.00
UK Trade and Investment Programme,UK Trade and Investment Programme,13-Apr-2011 ,Basic Grants - SESA Solo Support Scheme,UK Trade & Investment - Sectors Group,E J PAYNE LTD,146050,1000.00
UK Trade and Investment Programme,UK Trade and Investment Programme,13-Apr-2011 ,Basic Grants - SESA Solo Support Scheme,UK Trade & Investment - Sectors Group,KUSAN ACCESSORIES LTD,146051,1000.00
UK Trade and Investment Programme,UK Trade and Investment Programme,13-Apr-2011 ,Basic Grants - SESA Solo Support Scheme,UK Trade & Investment - Sectors Group,LA DRAPE INTERNATIONAL LTD,146052,1000.00
UK Trade and Investment Programme,UK Trade and Investment Programme,13-Apr-2011 ,Basic Grants - Trade Show Access Programme,UK Trade & Investment - Sectors Group,"BREWING, FOOD BEVERAGE INDUSTRY SUPPLIERS ASSOCIATION",146080,7000.00
UK Trade and Investment Programme,UK Trade and Investment Programme,13-Apr-2011 ,Basic Grants - Trade Show Access Programme,UK Trade & Investment - Sectors Group,"BREWING, FOOD BEVERAGE INDUSTRY SUPPLIERS ASSOCIATION",146080,1000.00
UK Trade and Investment Programme,UK Trade and Investment Programme,13-Apr-2011 ,Basic Grants - Trade Show Access Programme,UK Trade & Investment - Sectors Group,COMMERCIAL HORTICULTURAL ASSOCIATION,146054,8400.00
UK Trade and Investment Programme,UK Trade and Investment Programme,13-Apr-2011 ,Basic Grants - Trade Show Access Programme,UK Trade & Investment - Sectors Group,COMMERCIAL HORTICULTURAL ASSOCIATION,146054,2800.00
UK Trade and Investment Programme,UK Trade and Investment Programme,13-Apr-2011 ,Basic Grants - Trade Show Access Programme,UK Trade & Investment - Sectors Group,PPMA LTD,146081,14000.00
UK Trade and Investment Programme,UK Trade and Investment Programme,13-Apr-2011 ,Catering - Sector Events - Abroad,UK Trade & Investment - Sectors Group,FOREIGN AND COMMONWEALTH OFFICE (FCO),143861,883.62
UK Trade and Investment Programme,UK Trade and Investment Programme,13-Apr-2011 ,Catering - Sector Events - UK,UK Trade & Investment - Sectors Group,UNIVERSITY OF BATH,146092,1050.00
UK Trade and Investment Programme,UK Trade and Investment Programme,13-Apr-2011 ,Development Cost - Website (AUC) - Clearing Account - Balance Sheet,UK Trade & Investment - IT and Finance Group,CAKE SOLUTIONS LTD,146090,22608.00
UK Trade and Investment Programme,UK Trade and Investment Programme,13-Apr-2011 ,Entertainment UK - Regional Interchange Scheme,UK Trade & Investment - Regional Directorate,EAST MIDLANDS BUSINESS LTD,146097,2082.65
UK Trade and Investment Programme,UK Trade and Investment Programme,13-Apr-2011 ,Event Management - NINJ Sector Events,UK Trade & Investment - Sectors Group,THE BELL PARTNERSHIP LTD T/A THE FOUNDRY HOUSE,146065,3250.00
UK Trade and Investment Programme,UK Trade and Investment Programme,13-Apr-2011 ,Event Management - Outward missions,UK Trade & Investment - Sectors Group,ADS GROUP LTD,146077,3659.99
UK Trade and Investment Programme,UK Trade and Investment Programme,13-Apr-2011 ,Event Management - Outward missions,UK Trade & Investment - Sectors Group,FOREIGN AND COMMONWEALTH OFFICE (FCO),143753,199.57
UK Trade and Investment Programme,UK Trade and Investment Programme,13-Apr-2011 ,Event Management - Outward missions,UK Trade & Investment - Sectors Group,FOREIGN AND COMMONWEALTH OFFICE (FCO),143754,337.89
UK Trade and Investment Programme,UK Trade and Investment Programme,13-Apr-2011 ,Event Management - Outward missions,UK Trade & Investment - Sectors Group,FOREIGN AND COMMONWEALTH OFFICE (FCO),143795,140.93
UK Trade and Investment Programme,UK Trade and Investment Programme,13-Apr-2011 ,Event Management - Outward missions,UK Trade & Investment - Sectors Group,FOREIGN AND COMMONWEALTH OFFICE (FCO),143796,422.80
UK Trade and Investment Programme,UK Trade and Investment Programme,13-Apr-2011 ,Event Management - Outward missions,UK Trade & Investment - Sectors Group,FOREIGN AND COMMONWEALTH OFFICE (FCO),143799,443.09
UK Trade and Investment Programme,UK Trade and Investment Programme,13-Apr-2011 ,Event Management - Outward missions,UK Trade & Investment - Sectors Group,FOREIGN AND COMMONWEALTH OFFICE (FCO),143801,658.99
UK Trade and Investment Programme,UK Trade and Investment Programme,13-Apr-2011 ,Event Management - Outward missions,UK Trade & Investment - Sectors Group,FOREIGN AND COMMONWEALTH OFFICE (FCO),143821,68.00
UK Trade and Investment Programme,UK Trade and Investment Programme,13-Apr-2011 ,Event Management - Outward missions,UK Trade & Investment - Sectors Group,FOREIGN AND COMMONWEALTH OFFICE (FCO),143830,15.15
UK Trade and Investment Programme,UK Trade and Investment Programme,13-Apr-2011 ,Event Management - Outward missions,UK Trade & Investment - Sectors Group,FOREIGN AND COMMONWEALTH OFFICE (FCO),143831,81.14
UK Trade and Investment Programme,UK Trade and Investment Programme,13-Apr-2011 ,Event Management - Outward missions,UK Trade & Investment - Sectors Group,FOREIGN AND COMMONWEALTH OFFICE (FCO),143831,3.00
UK Trade and Investment Programme,UK Trade and Investment Programme,13-Apr-2011 ,Event Management - Outward missions,UK Trade & Investment - Sectors Group,FOREIGN AND COMMONWEALTH OFFICE (FCO),143832,15.15
UK Trade and Investment Programme,UK Trade and Investment Programme,13-Apr-2011 ,Event Management - Outward missions,UK Trade & Investment - Sectors Group,FOREIGN AND COMMONWEALTH OFFICE (FCO),143833,25.24
UK Trade and Investment Programme,UK Trade and Investment Programme,13-Apr-2011 ,Event Management - Outward missions,UK Trade & Investment - Sectors Group,FOREIGN AND COMMONWEALTH OFFICE (FCO),143834,110.27
UK Trade and Investment Programme,UK Trade and Investment Programme,13-Apr-2011 ,Event Management - Outward missions,UK Trade & Investment - Sectors Group,FOREIGN AND COMMONWEALTH OFFICE (FCO),143837,20.19
UK Trade and Investment Programme,UK Trade and Investment Programme,13-Apr-2011 ,Event Management - Outward missions,UK Trade & Investment - Sectors Group,FOREIGN AND COMMONWEALTH OFFICE (FCO),143838,20.19
UK Trade and Investment Programme,UK Trade and Investment Programme,13-Apr-2011 ,Event Management - Outward missions,UK Trade & Investment - Sectors Group,FOREIGN AND COMMONWEALTH OFFICE (FCO),143839,15.15
UK Trade and Investment Programme,UK Trade and Investment Programme,13-Apr-2011 ,Event Management - Outward missions,UK Trade & Investment - Sectors Group,FOREIGN AND COMMONWEALTH OFFICE (FCO),143840,10.10
UK Trade and Investment Programme,UK Trade and Investment Programme,13-Apr-2011 ,Event Management - Outward missions,UK Trade & Investment - Sectors Group,FOREIGN AND COMMONWEALTH OFFICE (FCO),143841,15.15
UK Trade and Investment Programme,UK Trade and Investment Programme,13-Apr-2011 ,Event Management - Outward missions,UK Trade & Investment - Sectors Group,FOREIGN AND COMMONWEALTH OFFICE (FCO),143842,12.62
UK Trade and Investment Programme,UK Trade and Investment Programme,13-Apr-2011 ,Event Management - Outward missions,UK Trade & Investment - Sectors Group,FOREIGN AND COMMONWEALTH OFFICE (FCO),143843,12.62
UK Trade and Investment Programme,UK Trade and Investment Programme,13-Apr-2011 ,Event Management - Post Challenge Fund,UK Trade & Investment - Sectors Group,ADS GROUP LTD,146077,15000.00
UK Trade and Investment Programme,UK Trade and Investment Programme,13-Apr-2011 ,Event Management - Post Challenge Fund,UK Trade & Investment - Sectors Group,ADS GROUP LTD,146077,4629.61
UK Trade and Investment Programme,UK Trade and Investment Programme,13-Apr-2011 ,Event Management - Sector Events - Abroad,UK Trade & Investment - Sectors Group,FOREIGN AND COMMONWEALTH OFFICE (FCO),143764,1435.73
UK Trade and Investment Programme,UK Trade and Investment Programme,13-Apr-2011 ,Event Management - Sector Events - Abroad,UK Trade & Investment - Sectors Group,FOREIGN AND COMMONWEALTH OFFICE (FCO),143765,64.48
UK Trade and Investment Programme,UK Trade and Investment Programme,13-Apr-2011 ,Event Management - Sector Events - Abroad,UK Trade & Investment - Sectors Group,FOREIGN AND COMMONWEALTH OFFICE (FCO),143766,2205.49
UK Trade and Investment Programme,UK Trade and Investment Programme,13-Apr-2011 ,Event Management - Sector Events - Abroad,UK Trade & Investment - Sectors Group,FOREIGN AND COMMONWEALTH OFFICE (FCO),143767,229.84
UK Trade and Investment Programme,UK Trade and Investment Programme,13-Apr-2011 ,Event Management - Sector Events - Abroad,UK Trade & Investment - Sectors Group,FOREIGN AND COMMONWEALTH OFFICE (FCO),143776,2525.90
UK Trade and Investment Programme,UK Trade and Investment Programme,13-Apr-2011 ,Event Management - Sector Events - Abroad,UK Trade & Investment - Sectors Group,FOREIGN AND COMMONWEALTH OFFICE (FCO),143791,179.55
UK Trade and Investment Programme,UK Trade and Investment Programme,13-Apr-2011 ,Event Management - Sector Events - Abroad,UK Trade & Investment - Sectors Group,FOREIGN AND COMMONWEALTH OFFICE (FCO),143804,58.25
UK Trade and Investment Programme,UK Trade and Investment Programme,13-Apr-2011 ,Event Management - Sector Events - Abroad,UK Trade & Investment - Sectors Group,FOREIGN AND COMMONWEALTH OFFICE (FCO),143808,581.69
UK Trade and Investment Programme,UK Trade and Investment Programme,13-Apr-2011 ,Event Management - Sector Events - Abroad,UK Trade & Investment - Sectors Group,FOREIGN AND COMMONWEALTH OFFICE (FCO),143809,317.75
UK Trade and Investment Programme,UK Trade and Investment Programme,13-Apr-2011 ,Event Management - Sector Events - Abroad,UK Trade & Investment - Sectors Group,FOREIGN AND COMMONWEALTH OFFICE (FCO),143810,84.73
UK Trade and Investment Programme,UK Trade and Investment Programme,13-Apr-2011 ,Event Management - Sector Events - Abroad,UK Trade & Investment - Sectors Group,FOREIGN AND COMMONWEALTH OFFICE (FCO),143811,84.73
UK Trade and Investment Programme,UK Trade and Investment Programme,13-Apr-2011 ,Event Management - Sector Events - Abroad,UK Trade & Investment - Sectors Group,FOREIGN AND COMMONWEALTH OFFICE (FCO),143812,169.47
UK Trade and Investment Programme,UK Trade and Investment Programme,13-Apr-2011 ,Event Management - Sector Events - Abroad,UK Trade & Investment - Sectors Group,FOREIGN AND COMMONWEALTH OFFICE (FCO),143813,435.80
UK Trade and Investment Programme,UK Trade and Investment Programme,13-Apr-2011 ,Event Management - Sector Events - Abroad,UK Trade & Investment - Sectors Group,FOREIGN AND COMMONWEALTH OFFICE (FCO),143817,3999.90
UK Trade and Investment Programme,UK Trade and Investment Programme,13-Apr-2011 ,Event Management - Sector Events - Abroad,UK Trade & Investment - Sectors Group,FOREIGN AND COMMONWEALTH OFFICE (FCO),143844,20.19
UK Trade and Investment Programme,UK Trade and Investment Programme,13-Apr-2011 ,Event Management - Sector Events - Abroad,UK Trade & Investment - Sectors Group,FOREIGN AND COMMONWEALTH OFFICE (FCO),143848,200.00
UK Trade and Investment Programme,UK Trade and Investment Programme,13-Apr-2011 ,Event Management - Sector Events - Abroad,UK Trade & Investment - Sectors Group,FOREIGN AND COMMONWEALTH OFFICE (FCO),143848,79.04
UK Trade and Investment Programme,UK Trade and Investment Programme,13-Apr-2011 ,Event Management - Sector Events - Abroad,UK Trade & Investment - Sectors Group,FOREIGN AND COMMONWEALTH OFFICE (FCO),143849,257.74
UK Trade and Investment Programme,UK Trade and Investment Programme,13-Apr-2011 ,Event Management - Sector Events - Abroad,UK Trade & Investment - Sectors Group,FOREIGN AND COMMONWEALTH OFFICE (FCO),143850,2310.00
UK Trade and Investment Programme,UK Trade and Investment Programme,13-Apr-2011 ,Event Management - Sector Events - Abroad,UK Trade & Investment - Sectors Group,FOREIGN AND COMMONWEALTH OFFICE (FCO),143852,2919.29
UK Trade and Investment Programme,UK Trade and Investment Programme,13-Apr-2011 ,Event Management - Sector Events - Abroad,UK Trade & Investment - Sectors Group,FOREIGN AND COMMONWEALTH OFFICE (FCO),143856,310.58
UK Trade and Investment Programme,UK Trade and Investment Programme,13-Apr-2011 ,Event Management - Sector Events - Abroad,UK Trade & Investment - Sectors Group,FOREIGN AND COMMONWEALTH OFFICE (FCO),143857,98.55
UK Trade and Investment Programme,UK Trade and Investment Programme,13-Apr-2011 ,Event Management - Sector Events - UK,UK Trade & Investment - Sectors Group,FOREIGN AND COMMONWEALTH OFFICE (FCO),143755,121.98
UK Trade and Investment Programme,UK Trade and Investment Programme,13-Apr-2011 ,Event Management - Sector Events - UK,UK Trade & Investment - Sectors Group,FOREIGN AND COMMONWEALTH OFFICE (FCO),143756,461.79
UK Trade and Investment Programme,UK Trade and Investment Programme,13-Apr-2011 ,Event Management - Sector Events - UK,UK Trade & Investment - Sectors Group,FOREIGN AND COMMONWEALTH OFFICE (FCO),143760,25.50
UK Trade and Investment Programme,UK Trade and Investment Programme,13-Apr-2011 ,Event Management - Sector Events - UK,UK Trade & Investment - Sectors Group,FOREIGN AND COMMONWEALTH OFFICE (FCO),143761,980.21
UK Trade and Investment Programme,UK Trade and Investment Programme,13-Apr-2011 ,Event Management - Sector Events - UK,UK Trade & Investment - Sectors Group,THE BELL PARTNERSHIP LTD T/A THE FOUNDRY HOUSE,146065,322.60
UK Trade and Investment Programme,UK Trade and Investment Programme,13-Apr-2011 ,Event Management - Short Term Business Attachments (STBA),UK Trade & Investment - Sectors Group,FOREIGN AND COMMONWEALTH OFFICE (FCO),143757,407.38
UK Trade and Investment Programme,UK Trade and Investment Programme,13-Apr-2011 ,Event Management - Short Term Business Attachments (STBA),UK Trade & Investment - Sectors Group,FOREIGN AND COMMONWEALTH OFFICE (FCO),143758,251.35
UK Trade and Investment Programme,UK Trade and Investment Programme,13-Apr-2011 ,Event Management - Trade Development Support,UK Trade & Investment - International Group,INSTITUTE OF DIRECTORS,146078,2732.20
UK Trade and Investment Programme,UK Trade and Investment Programme,13-Apr-2011 ,Event Management - Trade Development Support,UK Trade & Investment - International Group,INSTITUTE OF DIRECTORS,146078,4785.00
UK Trade and Investment Programme,UK Trade and Investment Programme,13-Apr-2011 ,Event Management - Trade Development Support,UK Trade & Investment - International Group,INSTITUTE OF DIRECTORS,146078,-5835.00
UK Trade and Investment Programme,UK Trade and Investment Programme,13-Apr-2011 ,Event Management - Trade Marketing Events,UK Trade & Investment - Regional Directorate,EAST OF ENGLAND IDB LTD,146047,11433.52
UK Trade and Investment Programme,UK Trade and Investment Programme,13-Apr-2011 ,Event Management - Trade Marketing Events,UK Trade & Investment - Regional Directorate,EAST OF ENGLAND IDB LTD,146047,516.48
UK Trade and Investment Programme,UK Trade and Investment Programme,13-Apr-2011 ,Event Management - Trade Marketing Events,UK Trade & Investment - Regional Directorate,EAST OF ENGLAND IDB LTD,146047,50.00
UK Trade and Investment Programme,UK Trade and Investment Programme,13-Apr-2011 ,Other Transportation Hire - Security Events,UK Trade & Investment - Defence and Security Organisation,GOVERNMENT CAR AND DESPATCH AGENCY,146085,301.28
UK Trade and Investment Programme,UK Trade and Investment Programme,13-Apr-2011 ,Other Transportation Hire - Security Events,UK Trade & Investment - Defence and Security Organisation,GOVERNMENT CAR AND DESPATCH AGENCY,146086,196.99
UK Trade and Investment Programme,UK Trade and Investment Programme,13-Apr-2011 ,Scheme Management Charges - Gateway to Global Growth,UK Trade & Investment - Regional Directorate,EAST OF ENGLAND IDB LTD,145568,-53004.14
UK Trade and Investment Programme,UK Trade and Investment Programme,13-Apr-2011 ,Scheme Management Charges - Global Partnerships,UK Trade & Investment - Business Group,PA CONSULTING GROUP LTD,146064,312069.40
UK Trade and Investment Programme,UK Trade and Investment Programme,13-Apr-2011 ,Scheme Management Charges - International Trade Team Contracting,UK Trade & Investment - Regional Directorate,SOUTH EAST TRADE & INVESTMENT LTD,146062,108771.37
UK Trade and Investment Programme,UK Trade and Investment Programme,13-Apr-2011 ,Scheme Management Charges - International Trade Team Contracting,UK Trade & Investment - Regional Directorate,SOUTH EAST TRADE & INVESTMENT LTD,146062,42514.91
UK Trade and Investment Programme,UK Trade and Investment Programme,13-Apr-2011 ,Scheme Management Charges - International Trade Team Contracting,UK Trade & Investment - Regional Directorate,SOUTH EAST TRADE & INVESTMENT LTD,146062,22000.00
UK Trade and Investment Programme,UK Trade and Investment Programme,13-Apr-2011 ,Scheme Management Charges - R&D Programme Sector Specialists,UK Trade & Investment - Business Group,PA CONSULTING GROUP LTD,146064,33915.37
UK Trade and Investment Programme,UK Trade and Investment Programme,13-Apr-2011 ,Scheme Management Charges - R&D Programme Sector Specialists,UK Trade & Investment - Business Group,PA CONSULTING GROUP LTD,146064,90600.00
UK Trade and Investment Programme,UK Trade and Investment Programme,13-Apr-2011 ,Scheme Management Charges - Sector Champion,UK Trade & Investment - Business Group,PA CONSULTING GROUP LTD,146064,3188.60
UK Trade and Investment Programme,UK Trade and Investment Programme,13-Apr-2011 ,Scheme Management Charges - Sector Champion,UK Trade & Investment - Business Group,PA CONSULTING GROUP LTD,146066,132053.20
UK Trade and Investment Programme,UK Trade and Investment Programme,13-Apr-2011 ,Scheme Management Charges - Trade Development External Advisers,UK Trade & Investment - Sectors Group,PA CONSULTING GROUP LTD,146037,58049.95
UK Trade and Investment Programme,UK Trade and Investment Programme,13-Apr-2011 ,Scheme Management Charges - Trade Development External Advisers,UK Trade & Investment - Sectors Group,PA CONSULTING GROUP LTD,146038,18000.00
UK Trade and Investment Programme,UK Trade and Investment Programme,13-Apr-2011 ,Sponsors Grants - Trade Show Access Programme,UK Trade & Investment - Sectors Group,"BREWING, FOOD BEVERAGE INDUSTRY SUPPLIERS ASSOCIATION",146079,7680.00
UK Trade and Investment Programme,UK Trade and Investment Programme,13-Apr-2011 ,Sponsors Grants - Trade Show Access Programme,UK Trade & Investment - Sectors Group,"BREWING, FOOD BEVERAGE INDUSTRY SUPPLIERS ASSOCIATION",146079,240.00
UK Trade and Investment Programme,UK Trade and Investment Programme,13-Apr-2011 ,Sponsors Grants - Trade Show Access Programme,UK Trade & Investment - Sectors Group,COMMERCIAL HORTICULTURAL ASSOCIATION,146053,1440.00
UK Trade and Investment Programme,UK Trade and Investment Programme,13-Apr-2011 ,Sponsors Grants - Trade Show Access Programme,UK Trade & Investment - Sectors Group,COMMERCIAL HORTICULTURAL ASSOCIATION,146053,480.00
UK Trade and Investment Programme,UK Trade and Investment Programme,13-Apr-2011 ,Sponsors Grants - Trade Show Access Programme,UK Trade & Investment - Sectors Group,INTELLECT,146087,8400.00
UK Trade and Investment Programme,UK Trade and Investment Programme,13-Apr-2011 ,Sponsors Grants - Trade Show Access Programme,UK Trade & Investment - Sectors Group,INTELLECT,146087,12300.00
UK Trade and Investment Programme,UK Trade and Investment Programme,13-Apr-2011 ,Sponsors Grants - Trade Show Access Programme,UK Trade & Investment - Sectors Group,PPMA LTD,146082,8400.00
UK Trade and Investment Programme,UK Trade and Investment Programme,13-Apr-2011 ,Stand Construction Costs - Trade Marketing Events,UK Trade & Investment - Marketing  & Communications Group,CLEARVIEW IMAGING SERVICES LTD,146058,15000.00
UK Trade and Investment Programme,UK Trade and Investment Programme,13-Apr-2011 ,Stand Construction Costs - Trade Marketing Events,UK Trade & Investment - Marketing  & Communications Group,CLEARVIEW IMAGING SERVICES LTD,146059,24000.00
UK Trade and Investment Programme,UK Trade and Investment Programme,13-Apr-2011 ,Stand Construction Costs - Trade Marketing Events,UK Trade & Investment - Marketing  & Communications Group,CLEARVIEW IMAGING SERVICES LTD,146060,25000.00
UK Trade and Investment Programme,UK Trade and Investment Programme,13-Apr-2011 ,Stand Construction Costs - Trade Marketing Events,UK Trade & Investment - Marketing  & Communications Group,CLEARVIEW IMAGING SERVICES LTD,146061,10220.00
UK Trade and Investment Programme,UK Trade and Investment Programme,13-Apr-2011 ,Stand Construction Costs - Trade Marketing Events,UK Trade & Investment - Marketing  & Communications Group,OCEAN DESIGNS LTD,146057,3000.00
UK Trade and Investment Programme,UK Trade and Investment Programme,13-Apr-2011 ,Stand Construction Costs - Trade Marketing Events,UK Trade & Investment - Marketing  & Communications Group,PROXAMA LTD T/A HYPERTAG,146056,1240.00
UK Trade and Investment Programme,UK Trade and Investment Programme,13-Apr-2011 ,Telecommunications - Trade Marketing Events,UK Trade & Investment - Regional Directorate,THUS LTD,146091,2.27
UK Trade and Investment Programme,UK Trade and Investment Programme,13-Apr-2011 ,Travel and Subsistence O'seas - Market Visit Scheme,UK Trade & Investment - Regional Directorate,ESSENCIA INC LTD,146083,600.00
UK Trade and Investment Programme,UK Trade and Investment Programme,13-Apr-2011 ,Travel and Subsistence O'seas - Market Visit Scheme,UK Trade & Investment - Regional Directorate,STAKCUP GLOBAL LTD,144759,800.00
UK Trade and Investment Programme,UK Trade and Investment Programme,13-Apr-2011 ,Travel and Subsistence O'seas - Security Events,UK Trade & Investment - Defence and Security Organisation,"Personal Expense, Name Witheld.",505162,72.53
UK Trade and Investment Programme,UK Trade and Investment Programme,13-Apr-2011 ,Travel and Subsistence O'seas - Short Term Business Attachments (STBA),UK Trade & Investment - Sectors Group,CHINA BRITAIN BUSINESS COUNCIL,146094,9996.75
UK Trade and Investment Programme,UK Trade and Investment Programme,13-Apr-2011 ,Travel and Subsistence O'seas - Short Term Business Attachments (STBA),UK Trade & Investment - Sectors Group,CHINA BRITAIN BUSINESS COUNCIL,146095,2202.23
UK Trade and Investment Programme,UK Trade and Investment Programme,13-Apr-2011 ,Travel and Subsistence UK - Security Events,UK Trade & Investment - Defence and Security Organisation,"Personal Expense, Name Witheld.",505162,48.00
UK Trade and Investment Programme,UK Trade and Investment Programme,13-Apr-2011 ,Venue Hire - Trade Marketing Events,UK Trade & Investment - Regional Directorate,SUFFOLK CHAMBER OF COMMERCE,146040,2300.00
UK Trade and Investment Programme,UK Trade and Investment Programme,14-Apr-2011 ,Basic Grants - Trade Show Access Programme,UK Trade & Investment - Sectors Group,BRITISH HOME ENHANCEMENT TRADE ASSOCIATION (BHETA),146108,1000.00
UK Trade and Investment Programme,UK Trade and Investment Programme,14-Apr-2011 ,Basic Grants - Trade Show Access Programme,UK Trade & Investment - Sectors Group,GAMBICA ASSOCIATION LTD,146121,2800.00
UK Trade and Investment Programme,UK Trade and Investment Programme,14-Apr-2011 ,Conference and seminar fees - Ministerial Events,UK Trade & Investment - International Group,FOREIGN AND COMMONWEALTH OFFICE (FCO),146044,4694.30
UK Trade and Investment Programme,UK Trade and Investment Programme,14-Apr-2011 ,Event Management - Development Business,UK Trade & Investment - Sectors Group,INTERNATIONAL AGRI-TECHNOLOGY CENTRE LTD (IATC),146129,61752.66
UK Trade and Investment Programme,UK Trade and Investment Programme,14-Apr-2011 ,Event Management - Development Business,UK Trade & Investment - Sectors Group,INTERNATIONAL AGRI-TECHNOLOGY CENTRE LTD (IATC),146129,2118.05
UK Trade and Investment Programme,UK Trade and Investment Programme,14-Apr-2011 ,Event Management - International Trade Team Contracting,UK Trade & Investment - Regional Directorate,GOLDEN VISION LTD,146106,600.00
UK Trade and Investment Programme,UK Trade and Investment Programme,14-Apr-2011 ,Event Management - Outward missions,UK Trade & Investment - Sectors Group,FOREIGN AND COMMONWEALTH OFFICE (FCO),143215,1572.00
UK Trade and Investment Programme,UK Trade and Investment Programme,14-Apr-2011 ,Event Management - Outward missions,UK Trade & Investment - Sectors Group,FOREIGN AND COMMONWEALTH OFFICE (FCO),143216,2771.30
UK Trade and Investment Programme,UK Trade and Investment Programme,14-Apr-2011 ,Event Management - Sector Events - Abroad,UK Trade & Investment - Sectors Group,FOREIGN AND COMMONWEALTH OFFICE (FCO),143216,1958.70
UK Trade and Investment Programme,UK Trade and Investment Programme,14-Apr-2011 ,Event Management - Sector Events - UK,UK Trade & Investment - Sectors Group,FOREIGN AND COMMONWEALTH OFFICE (FCO),146044,3500.00
UK Trade and Investment Programme,UK Trade and Investment Programme,14-Apr-2011 ,Event Management - Trade Development Support,UK Trade & Investment - International Group,G4S SECURE SOLUTIONS (UK) LTD,146032,90.60
UK Trade and Investment Programme,UK Trade and Investment Programme,14-Apr-2011 ,Event Management - Trade Marketing Events,UK Trade & Investment - Regional Directorate,LONDON CHAMBER OF COMMERCE & INDUSTRY,145981,5133.82
UK Trade and Investment Programme,UK Trade and Investment Programme,14-Apr-2011 ,Event Management - Trade Marketing Events,UK Trade & Investment - Regional Directorate,LONDON CHAMBER OF COMMERCE & INDUSTRY,145981,30.00
